Workbook

Sheet 5月
A1: 来货日期 | B1: 验货日期 | C1: 供应商 | D1: 商品编码 | E1: 来货数量 | F1: 抽检/个数 | G1: 手感 | H1: 气味 | I1: 克重 | J1: 内芯 | K1: 布料 | L1: 缝制 | M1: 拉链 | N1: 卫生 | O1: 条码 | P1: 洗水标 | Q1: 不合格/个 | R1: 大批次品 | S1: 问题描述 | T1: 检验员 | U1: 品类 | V1: 单价 | W1: 总价 | X1: 克重
A2: 2026-05-01 | B2: 2026-05-01 | C2: 华睿 | D2: J02B05AW2-LX | E2: 492 | F2: 40 | J2: 1 | Q2: 1 | S2: 撕裂1 | U2: 裸心 | V2: 0.25 | W2: =F2*V2 -> 10
A3: 2026-05-01 | B3: 2026-05-01 | C3: 华睿 | D3: J07B08BS1 | E3: 108 | F3: 12 | U3: 成品 | V3: 0.75 | W3: =F3*V3 -> 9
A4: 2026-05-01 | B4: 2026-05-01 | C4: 华睿 | D4: J07B08AS1 | E4: 312 | F4: 36 | U4: 成品 | V4: 0.75 | W4: 27
A5: 2026-05-01 | B5: 2026-05-01 | C5: 华睿 | D5: J07B02B | E5: 240 | F5: 20 | U5: 裸心 | V5: 0.25 | W5: 5
A6: 2026-05-01 | B6: 2026-05-01 | C6: 华睿 | D6: 262401JG01WV4 | E6: 495 | F6: 30 | S6: 有气味，标识不一致（吊牌外套，洗标面料） | U6: 盒装 | V6: 1 | W6: 30
A7: 2026-05-06 | B7: 2026-05-06 | C7: 智善 | D7: 214002J0117MS1-WT | E7: 413 | F7: 40 | U7: 外套 | V7: 0.5 | W7: 20
A8: 2026-05-06 | B8: 2026-05-06 | C8: 智善 | D8: J08B06AS1-WT | E8: 729 | F8: 80 | U8: 外套 | V8: 0.5 | W8: 40
A9: 2026-05-06 | B9: 2026-05-06 | C9: 智善 | D9: 210703J1500GS1-WT | E9: 350 | F9: 35 | U9: 外套 | V9: 0.5 | W9: 17.5
A10: 2026-05-06 | B10: 2026-05-06 | C10: 大宸 | D10: 200801J0117MB7-WT | E10: 723 | F10: 80 | U10: 外套 | V10: 0.5 | W10: 40
A11: 2026-05-07 | B11: 2026-05-07 | C11: 华睿 | D11: 220604J0100MB2 | E11: 1200 | F11: 120 | L11: 1 | Q11: 1 | S11: 开线1 | U11: 成品 | V11: 0.75 | W11: 90
A12: 2026-05-07 | B12: 2026-05-07 | C12: 华睿 | D12: J07B08BS1-WT | E12: 500 | F12: 50 | L12: 2 | R12: 500 | S12: 线头错，错缝2 | U12: 外套 | V12: 0.5 | W12: 25
A13: 2026-05-07 | B13: 2026-05-07 | C13: 华睿 | D13: J06D01AS1 | E13: 60 | F13: 10 | U13: 成品 | V13: 0.75 | W13: 7.5
A14: 2026-05-07 | B14: 2026-05-07 | C14: 逸康 | D14: J02B05AW2-LX | E14: 546 | F14: 42 | U14: 裸心 | V14: 0.25 | W14: 10.5
A15: 2026-05-07 | B15: 2026-05-07 | C15: 逸康 | D15: 210709J1500MS1-NX | E15: 310 | F15: 30 | U15: 裸心 | V15: 0.25 | W15: 7.5
A16: 2026-05-07 | B16: 2026-05-07 | C16: 奇思 | D16: 250801J0100MS9 | E16: 100 | F16: 6 | R16: 100 | S16: 外套污渍、错缝、开线、标识（内套百分比符号错误）、内套漏缝开线破损，内心气孔大长 | U16: 压缩 | V16: 0.8 | W16: 4.8
A17: 2026-05-07 | B17: 2026-05-07 | C17: 奇思 | D17: 250801J0100MB5 | E17: 100 | F17: 6 | R17: 100 | S17: 外套污渍、错缝、开线、标识（内套百分比符号错误）、内套漏缝开线破损，内心气孔大长 | U17: 压缩 | V17: 0.8 | W17: 4.8
A18: 2026-05-07 | B18: 2026-05-07 | C18: 奇思 | D18: 261401J0100LBS | E18: 93 | F18: 6 | Q18: 1 | S18: 起毛1 | U18: 压缩 | V18: 0.8 | W18: 4.8
A19: 2026-05-10 | B19: 2026-05-10 | C19: 顺优 | D19: 242103J3100LB1-HMP-KB | E19: 360 | F19: 35 | U19: 外套 | V19: 0.5 | W19: 17.5
A20: 2026-05-10 | B20: 2026-05-10 | C20: 顺优 | D20: 242103J3100LB1-HMP-ZD | E20: 360 | F20: 35 | U20: 外套 | V20: 0.5 | W20: 17.5
A21: 2026-05-10 | B21: 2026-05-10 | C21: 顺优 | D21: 242103J3100LB6-HMP-KB | E21: 480 | F21: 50 | U21: 外套 | V21: 0.5 | W21: 25
A22: 2026-05-10 | B22: 2026-05-10 | C22: 顺优 | D22: 242103J3100LB6-HMP-ZD | E22: 480 | F22: 50 | U22: 外套 | V22: 0.5 | W22: 25
A23: 2026-05-12 | B23: 2026-05-12 | C23: 顺优 | D23: 252102J3100LB4 | E23: 220 | F23: 20 | N23: 1 | Q23: 1 | S23: 污渍1（已处理） | U23: 成品 | V23: 0.75 | W23: 15
A24: 2026-05-12 | B24: 2026-05-12 | C24: 顺优 | D24: 242103J3100LB6-SLJ-KB | E24: 1186 | F24: 80 | U24: 裸心 | V24: 0.25 | W24: 20
A25: 2026-05-12 | B25: 2026-05-12 | C25: 顺优 | D25: 242103J3100LB6-SLJ-ZD | E25: 1186 | F25: 80 | U25: 裸心 | V25: 0.25 | W25: 20
A26: 2026-05-12 | B26: 2026-05-12 | C26: 顺优 | D26: J62D01QB1 | E26: 200 | F26: 21 | U26: 成品 | V26: 0.75 | W26: 15.75
A27: 2026-05-12 | B27: 2026-05-12 | C27: 顺优 | D27: 190602J0121M1B1 | E27: 100 | F27: 14 | R27: 100 | S27: 面料比之前大货粗糙 | U27: 成品 | V27: 0.75 | W27: 10.5
A28: 2026-05-12 | B28: 2026-05-12 | C28: 顺优 | D28: 230601J0100MB1 | E28: 500 | F28: 42 | U28: 成品 | V28: 0.75 | W28: 31.5
A29: 2026-05-12 | B29: 2026-05-12 | C29: 顺优 | D29: 240614J3100SB1 | E29: 50 | F29: 10 | U29: 成品 | V29: 0.75 | W29: 7.5
A30: 2026-05-12 | B30: 2026-05-12 | C30: 泓全 | D30: J26C06ZS1 | E30: 500 | F30: 25 | U30: 被子 | V30: 1 | W30: 25
A31: 2026-05-12 | B31: 2026-05-12 | C31: 泓全 | D31: J26C06YS1 | E31: 300 | F31: 15 | U31: 被子 | V31: 1 | W31: 15
A32: 2026-05-12 | B32: 2026-05-12 | C32: 泓全 | D32: J06D01AS1 | E32: 224 | F32: 28 | U32: 成品 | V32: 0.75 | W32: 21
A33: 2026-05-12 | B33: 2026-05-12 | C33: 泓全 | D33: 240606J1500MS9-WT | E33: 83 | F33: 10 | U33: 外套 | V33: 0.5 | W33: 5
A34: 2026-05-12 | B34: 2026-05-12 | C34: 泓全 | D34: J17B12AS9-WT | E34: 328 | F34: 35 | U34: 外套 | V34: 0.5 | W34: 17.5
A35: 2026-05-12 | B35: 2026-05-14 | C35: 逸康 | D35: J24A15AS1 | E35: 500 | F35: 60 | U35: 成品 | V35: 0.75 | W35: =F35*V35 -> 45
A36: 2026-05-12 | B36: 2026-05-14 | C36: 逸康 | D36: J24A15AR6 | E36: 100 | F36: 20 | U36: 成品 | V36: 0.75 | W36: 15
A37: 2026-05-12 | B37: 2026-05-14 | C37: 逸康 | D37: J07B08AS1 | E37: 50 | F37: 10 | U37: 成品 | V37: 0.75 | W37: 7.5
A38: 2026-05-12 | B38: 2026-05-14 | C38: 逸康 | D38: J07B08AB7 | E38: 40 | F38: 10 | U38: 成品 | V38: 0.75 | W38: 7.5
A39: 2026-05-12 | B39: 2026-05-14 | C39: 逸康 | D39: 192001J0111MW2 | E39: 100 | F39: 10 | U39: 成品 | V39: 0.75 | W39: 7.5
A40: 2026-05-12 | B40: 2026-05-14 | C40: 逸康 | D40: 260801J0100MB17 | E40: 50 | F40: 5 | U40: 压缩 | V40: 0.8 | W40: 4
A41: 2026-05-12 | B41: 2026-05-14 | C41: 逸康 | D41: J02B05AW2-LX | E41: 126 | F41: 15 | R41: 126 | S41: 氧化2，撕裂1 | U41: 裸心 | V41: 0.25 | W41: 3.75
A42: 2026-05-14 | B42: 2026-05-14 | C42: 高裕 | D42: 200601J0100MB7-XZLX | E42: 600 | F42: 60 | U42: 裸心 | V42: 0.25 | W42: 15
A43: 2026-05-14 | B43: 2026-05-14 | C43: 高裕 | D43: 230613J0100MB7-XZDZ | E43: 100 | F43: 10 | U43: 成品 | V43: 0.75 | W43: 7.5
A44: 2026-05-14 | B44: 2026-05-14 | C44: 高裕 | D44: 200601J0100MB7-LX | E44: 600 | F44: 60 | U44: 裸心 | V44: 0.25 | W44: 15
A45: 2026-05-14 | B45: 2026-05-14 | C45: 高裕 | D45: 210703J1500GS1-NX | E45: 400 | F45: 40 | U45: 裸心 | V45: 0.25 | W45: 10
A46: 2026-05-14 | B46: 2026-05-14 | C46: 高裕 | D46: 220702J1511B-NX | E46: 200 | F46: 20 | U46: 裸心 | V46: 0.25 | W46: 5
A47: 2026-05-14 | B47: 2026-05-14 | C47: 高裕 | D47: J08B07BS1-LX | E47: 616 | F47: 66 | U47: 裸心 | V47: 0.25 | W47: 16.5
A48: 2026-05-14 | B48: 2026-05-14 | C48: 高裕 | D48: 210801J0100SB7 | E48: 176 | F48: 10 | U48: 压缩 | V48: 0.8 | W48: 8
A49: 2026-05-14 | B49: 2026-05-14 | C49: 高裕 | D49: J02A04AW2 | E49: 512 | F49: 48 | R49: 512 | S49: 吊牌错误3 | U49: 成品 | V49: 0.75 | W49: 36
A50: 2026-05-14 | B50: 2026-05-14 | C50: 高裕 | D50: J02A07CW2-NX | E50: 208 | F50: 20 | U50: 裸心 | V50: 0.25 | W50: 5
A51: 2026-05-14 | B51: 2026-05-14 | C51: 高裕 | D51: J02A07AW2-NX | E51: 200 | F51: 20 | U51: 裸心 | V51: 0.25 | W51: 5
A52: 2026-05-14 | B52: 2026-05-14 | C52: 高裕 | D52: 240101J0100MW1 | E52: 136 | F52: 8 | U52: 压缩 | V52: 0.8 | W52: 6.4
A53: 2026-05-15 | B53: 2026-05-15 | C53: 华睿 | D53: J06D01AS1 | E53: 300 | F53: 30 | U53: 成品 | V53: 0.75 | W53: 22.5
A54: 2026-05-15 | B54: 2026-05-15 | C54: 华睿 | D54: J06D01BS1NX | E54: 460 | F54: 40 | U54: 裸心 | V54: 0.25 | W54: 10
A55: 2026-05-15 | B55: 2026-05-15 | C55: 华睿 | D55: J07B08BS1-WT | E55: 500 | F55: 50 | U55: 外套 | V55: 0.5 | W55: 25
A56: 2026-05-15 | B56: 2026-05-15 | C56: 华睿 | D56: 250606J01XHZMB7 | E56: 300 | F56: 30 | U56: 成品 | V56: 0.75 | W56: 22.5
A57: 2026-05-15 | B57: 2026-05-15 | C57: 泓全 | D57: 240606J1500MS9-WT | E57: 221 | F57: 25 | U57: 外套 | V57: 0.5 | W57: 12.5
A58: 2026-05-15 | B58: 2026-05-16 | C58: 顾舒家华 | D58: J06A14BB7 | E58: 300 | F58: 30 | U58: 成品 | V58: 0.75 | W58: 22.5
A59: 2026-05-15 | B59: 2026-05-16 | C59: 顾舒家华 | D59: J06A14BS1 | E59: 450 | F59: 50 | U59: 成品 | V59: 0.75 | W59: 37.5
A60: 2026-05-15 | B60: 2026-05-17 | C60: 顾舒家华 | D60: 240701J0100MB3 | E60: 208 | F60: 20 | U60: 成品 | V60: 0.75 | W60: 15
A61: 2026-05-15 | B61: 2026-05-17 | C61: 顾舒家华 | D61: 241201J0100MB1 | E61: 162 | F61: 18 | U61: 成品 | V61: 0.75 | W61: 13.5
A62: 2026-05-15 | B62: 2026-05-17 | C62: 顾舒家华 | D62: 240604J0100MB3 | E62: 96 | F62: 12 | U62: 成品 | V62: 0.75 | W62: 9
A63: 2026-05-15 | B63: 2026-05-17 | C63: 顾舒家华 | D63: 240604J0100MB1 | E63: 84 | F63: 12 | U63: 成品 | V63: 0.75 | W63: 9
A64: 2026-05-17 | B64: 2026-05-18 | C64: 顺优 | D64: 242104J3100LP1-HMP-KB | E64: 246 | F64: 25 | U64: 外套 | V64: 0.5 | W64: 12.5
A65: 2026-05-17 | B65: 2026-05-18 | C65: 顺优 | D65: 242104J3100LP1-HMP-ZD | E65: 246 | F65: 25 | U65: 外套 | V65: 0.5 | W65: 12.5
A66: 2026-05-17 | B66: 2026-05-18 | C66: 顺优 | D66: 242103J3100LB6-HMP-KB | E66: 840 | F66: 80 | U66: 外套 | V66: 0.5 | W66: 40
A67: 2026-05-17 | B67: 2026-05-18 | C67: 顺优 | D67: 242103J3100LB6-HMP-ZD | E67: 840 | F67: 80 | U67: 外套 | V67: 0.5 | W67: =F67*V67 -> 40
A68: 2026-05-17 | B68: 2026-05-18 | C68: 顺优 | D68: 252103J3100XLB1-HMP-KB | E68: 200 | F68: 20 | U68: 外套 | V68: 0.5 | W68: 10
A69: 2026-05-17 | B69: 2026-05-18 | C69: 顺优 | D69: 252103J3100XLB1-HMP-ZD | E69: 200 | F69: 20 | U69: 外套 | V69: 0.5 | W69: 10
A70: 2026-05-18 | B70: 2026-05-19 | C70: 金凯迪 | D70: 240108J0100LS9-NX | E70: =284+84 -> 368 | F70: 32 | J70: 1 | K70: 4 | R70: 368 | S70: 内套漏沙4，内心气孔1 | U70: 裸心 | V70: 0.25 | W70: 8
A71: 2026-05-18 | B71: 2026-05-19 | C71: 金凯迪 | D71: J06D01AS1 | E71: 166 | F71: 30 | P71: 1 | Q71: 1 | S71: 无洗标1 | U71: 成品 | V71: 0.75 | W71: 22.5
A72: 2026-05-18 | B72: 2026-05-19 | C72: 金凯迪 | D72: J06D01AB7 | E72: 8 | F72: 8 | G72: 1 | P72: 1 | Q72: 2 | S72: 无洗标1，手感软1 | U72: 成品 | V72: 0.75 | W72: 6
A73: 2026-05-18 | B73: 2026-05-19 | C73: 金凯迪 | D73: 211301J0100MB3 | E73: 2 | F73: 2 | U73: 成品 | V73: 0.75 | W73: 1.5
A74: 2026-05-18 | B74: 2026-05-19 | C74: 金凯迪 | D74: J06A14BS1 | E74: 3 | F74: 3 | U74: 成品 | V74: 0.75 | W74: 2.25
A75: 2026-05-18 | B75: 2026-05-19 | C75: 金凯迪 | D75: J25D02BS1 | E75: 1 | F75: 1 | U75: 成品 | V75: 0.75 | W75: 0.75
A76: 2026-05-18 | B76: 2026-05-19 | C76: 金凯迪 | D76: J24A19AS1 | E76: 1 | F76: 1 | U76: 成品 | V76: 0.75 | W76: 0.75
A77: 2026-05-18 | B77: 2026-05-19 | C77: 金凯迪 | D77: J25D02AS1-WT | E77: 8 | F77: 8 | U77: 外套 | V77: 0.5 | W77: 4
A78: 2026-05-18 | B78: 2026-05-19 | C78: 金凯迪 | D78: 211201J0100MB3 | E78: 16 | F78: 16 | Q78: 1 | S78: 无小枕1，内有退货时的次品纸条，没处理 | U78: 成品 | V78: 0.75 | W78: 12
A79: 2026-05-19 | B79: 2026-05-19 | C79: 顺优 | D79: 252108J3100XLB1-HMP-KB | E79: 200 | F79: 20 | U79: 外套 | V79: 0.5 | W79: 10
A80: 2026-05-19 | B80: 2026-05-19 | C80: 顺优 | D80: 252108J3100XLB1-HMP-ZD | E80: 200 | F80: 20 | U80: 外套 | V80: 0.5 | W80: 10
A81: 2026-05-19 | B81: 2026-05-19 | C81: 顺优 | D81: 242104J3100LP1-HMP-KB | E81: 82 | F81: 10 | U81: 外套 | V81: 0.5 | W81: 5
A82: 2026-05-19 | B82: 2026-05-19 | C82: 顺优 | D82: 242104J3100LP1-HMP-ZD | E82: 82 | F82: 10 | U82: 外套 | V82: 0.5 | W82: 5
A83: 2026-05-19 | B83: 2026-05-19 | C83: 卓涛 | D83: J13B22AW2WT | E83: 1000 | F83: 100 | U83: 外套 | V83: 0.5 | W83: 50
A84: 2026-05-20 | B84: 2026-05-20 | C84: 顺优 | D84: 242103J3100LB6-SLJ-KB | E84: 1000 | F84: 80 | U84: 裸心 | V84: 0.25 | W84: 20
A85: 2026-05-20 | B85: 2026-05-20 | C85: 顺优 | D85: 242103J3100LB6-SLJ-ZD | E85: 1000 | F85: 80 | U85: 裸心 | V85: 0.25 | W85: 20
A86: 2026-05-20 | B86: 2026-05-20 | C86: 智善 | D86: J08B06AS1-WT | E86: 510 | F86: 50 | U86: 外套 | V86: 0.5 | W86: 25
A87: 2026-05-20 | B87: 2026-05-20 | C87: 智善 | D87: J08B02S1 | E87: 504 | F87: 50 | U87: 外套 | V87: 0.5 | W87: 25
A88: 2026-05-20 | B88: 2026-05-20 | C88: 智善 | D88: 200601J0100MB7-WT | E88: 397 | F88: 40 | U88: 外套 | V88: 0.5 | W88: 20
A89: 2026-05-20 | B89: 2026-05-20 | C89: 智善 | D89: J06A20AS1-WT | E89: 150 | F89: 20 | U89: 外套 | V89: 0.5 | W89: 10
A90: 2026-05-21 | B90: 2026-05-21 | C90: 佳雷 | D90: 252107J0100LB10 | E90: 1000 | F90: 20 | U90: 压缩 | V90: 0.8 | W90: 16
A91: 2026-05-21 | B91: 2026-05-21 | C91: 鸿业 | D91: 214002J0117MS1-LX | E91: 500 | F91: 72 | R91: 500 | S91: 污渍、氧化5撕裂1，余料未修1 | U91: 裸心 | V91: 0.25 | W91: 18
A92: 2026-05-22 | B92: 2026-05-22 | C92: 逸康 | D92: J07B08AB7 | E92: 70 | F92: 10 | U92: 成品 | V92: 0.75 | W92: 7.5
A93: 2026-05-22 | B93: 2026-05-22 | C93: 逸康 | D93: J07B08AS1 | E93: 410 | F93: 50 | U93: 成品 | V93: 0.75 | W93: 37.5
A94: 2026-05-22 | B94: 2026-05-22 | C94: 逸康 | D94: 232408J0100MB3 | E94: 400 | F94: 40 | U94: 裸心 | V94: 0.25 | W94: 10
A95: 2026-05-22 | B95: 2026-05-22 | C95: 逸康 | D95: J02B05AW2-LX | E95: 282 | F95: 20 | U95: 裸心 | V95: 0.25 | W95: 5
A96: 2026-05-23 | B96: 2026-05-25 | C96: 华睿 | D96: 240104H0100MW2 | E96: 196 | F96: 21 | U96: 成品 | V96: 0.75 | W96: 15.75
A97: 2026-05-23 | B97: 2026-05-25 | C97: 华睿 | D97: J06D01AS1NX | E97: 250 | F97: 30 | U97: 裸心 | V97: 0.25 | W97: 7.5
A98: 2026-05-23 | B98: 2026-05-25 | C98: 华睿 | D98: J07B08BB7WT | E98: 500 | F98: 50 | L98: 1 | Q98: 1 | S98: 错缝1 | U98: 外套 | V98: 0.5 | W98: 25
A99: 2026-05-23 | B99: 2026-05-25 | C99: 华睿 | D99: J02B05AW2-LX | E99: 504 | F99: 48 | J99: 1 | N99: 1 | Q99: 2 | S99: 撕裂1，污渍1 | U99: 裸心 | V99: 0.25 | W99: =F99*V99 -> 12
A100: 2026-05-23 | B100: 2026-05-25 | C100: 华睿 | D100: J07B02B | E100: 132 | F100: 12 | U100: 裸心 | V100: 0.25 | W100: 3
A101: 2026-05-24 | B101: 2026-05-25 | C101: 顺优 | D101: J62D01QB1 | E101: 301 | F101: 28 | U101: 裸心 | V101: 0.25 | W101: 7
A102: 2026-05-24 | B102: 2026-05-25 | C102: 顺优 | D102: 230601J0100MB1 | E102: 200 | F102: 21 | U102: 裸心 | V102: 0.25 | W102: 5.25
A103: 2026-05-24 | B103: 2026-05-25 | C103: 顺优 | D103: 230610J0108MB6 | E103: 49 | F103: 7 | U103: 裸心 | V103: 0.25 | W103: 1.75
A104: 2026-05-24 | B104: 2026-05-25 | C104: 顺优 | D104: 240605J0108MB1-ZT | E104: 145 | F104: 14 | U104: 裸心 | V104: 0.25 | W104: 3.5
A105: 2026-05-24 | B105: 2026-05-25 | C105: 顺优 | D105: 240605J0108MB1-XZWT | E105: 145 | F105: 20 | U105: 外套 | V105: 0.5 | W105: 10
A106: 2026-05-24 | B106: 2026-05-25 | C106: 佳盛 | D106: 210104J0200MW2 | E106: 325 | F106: 50 | U106: 裸心 | V106: 0.25 | W106: 12.5
A107: 2026-05-25 | B107: 2026-05-25 | C107: 顾舒家华 | D107: 220606J0100MR4 | E107: 60 | F107: 10 | U107: 裸心 | V107: 0.25 | W107: 2.5
A108: 2026-05-25 | B108: 2026-05-25 | C108: 顾舒家华 | D108: 220606J0100MS9 | E108: 230 | F108: 30 | U108: 裸心 | V108: 0.25 | W108: 7.5
A109: 2026-05-25 | B109: 2026-05-25 | C109: 顾舒家华 | D109: 230608J0115MB6 | E109: 360 | F109: 40 | U109: 裸心 | V109: 0.25 | W109: 10
A110: 2026-05-25 | B110: 2026-05-25 | C110: 顾舒家华 | D110: J06A14BS1-NX | E110: 300 | F110: 20 | U110: 裸心 | V110: 0.25 | W110: 5
A111: 2026-05-26 | B111: 2026-05-26 | C111: 高裕 | D111: J06A17AB7NX | E111: 200 | F111: 16 | U111: 裸心 | V111: 0.25 | W111: 4
A112: 2026-05-26 | B112: 2026-05-26 | C112: 高裕 | D112: J06A22AS1 | E112: 320 | F112: 16 | U112: 压缩 | V112: 0.8 | W112: 12.8
A113: 2026-05-26 | B113: 2026-05-26 | C113: 高裕 | D113: 220702J1511G-NX | E113: 300 | F113: 30 | U113: 裸心 | V113: 0.25 | W113: 7.5
A114: 2026-05-26 | B114: 2026-05-26 | C114: 高裕 | D114: 210703J1500BS1-NX | E114: 400 | F114: 40 | U114: 裸心 | V114: 0.25 | W114: 10
A115: 2026-05-26 | B115: 2026-05-26 | C115: 高裕 | D115: 210703J1500GS1-NX | E115: 120 | F115: 10 | U115: 裸心 | V115: 0.25 | W115: 2.5
A116: 2026-05-26 | B116: 2026-05-26 | C116: 高裕 | D116: J08B07BS1-LX | E116: 88 | F116: 10 | U116: 裸心 | V116: 0.25 | W116: 2.5
A117: 2026-05-26 | B117: 2026-05-26 | C117: 高裕 | D117: J08B06BS1-LX | E117: 330 | F117: 30 | U117: 裸心 | V117: 0.25 | W117: 7.5
A118: 2026-05-26 | B118: 2026-05-26 | C118: 高裕 | D118: J02A04CW2-NX | E118: 100 | F118: 10 | U118: 裸心 | V118: 0.25 | W118: 2.5
W119: 0
W120: 0
W121: 0
W122: 0
W123: 0
W124: 0
W125: 0
W126: 0
W127: 0
W128: 0
W129: 0
W130: 0
W131: =F131*V131 -> 0
W132: 0
W133: 0
W134: 0
W135: 0
W136: 0
W137: 0
W138: 0
W139: 0
W140: 0
W141: 0
W142: 0
W143: 0
W144: 0
W145: 0
W146: 0
W147: 0
W148: 0
W149: 0
W150: 0
W151: 0
W152: 0
W153: 0
W154: 0
W155: 0
W156: 0
W157: 0
W158: 0
W159: 0
W160: 0
W161: 0
W162: 0
W163: =F163*V163 -> 0
W164: 0
W165: 0
W166: 0
W167: 0
W168: 0
W169: 0
W170: 0
W171: 0
W172: 0
W173: 0
W174: 0
W175: 0
W176: 0
W177: 0
W178: 0
W179: 0
W180: 0
W181: 0
W182: 0
W183: 0
W184: 0
W185: 0
W186: 0
W187: 0
W188: 0
W189: 0
W190: 0
W191: 0
W192: 0
W193: 0
W194: 0
W195: =F195*V195 -> 0
W196: 0
W197: 0
W198: 0
W199: 0
W200: 0
... 15 more rows

Sheet 4月
A1: 来货日期 | B1: 验货日期 | C1: 供应商 | D1: 商品编码 | E1: 来货数量 | F1: 抽检/个数 | G1: 手感 | H1: 气味 | I1: 克重 | J1: 内芯 | K1: 布料 | L1: 缝制 | M1: 拉链 | N1: 卫生 | O1: 条码 | P1: 洗水标 | Q1: 不合格/个 | R1: 大批次品 | S1: 问题描述 | T1: 检验员 | U1: 品类 | V1: 单价 | W1: 总价 | X1: 克重
A2: 2026-04-01 | B2: 2026-04-01 | C2: 逸康 | D2: J07B08AB7 | E2: 430 | F2: 50 | U2: 外套 | V2: 0.5 | W2: =F2*V2 -> 25
A3: 2026-04-01 | B3: 2026-04-01 | C3: 高裕 | D3: J06D05AB7-LX | E3: 180 | F3: 20 | S3: 有大气孔 | U3: 裸心 | V3: 0.25 | W3: 5
A4: 2026-04-01 | B4: 2026-04-02 | C4: 泓全 | D4: 242502J1500MS9-WT | E4: 360 | F4: 40 | U4: 外套 | V4: 0.5 | W4: 20
A5: 2026-04-01 | B5: 2026-04-02 | C5: 泓全 | D5: J17B14AS9-WT | E5: 153 | F5: 20 | U5: 外套 | V5: 0.5 | W5: 10
A6: 2026-04-01 | B6: 2026-04-02 | C6: 泓全 | D6: J17B14AR4-WT | E6: 23 | F6: 23 | U6: 外套 | V6: 0.5 | W6: 11.5
A7: 2026-04-01 | B7: 2026-04-01 | C7: 泓全 | D7: 240606J1501MS9 | E7: 220 | F7: =16*2 -> 32 | U7: 成品 | V7: 0.75 | W7: 24
A8: 2026-04-01 | B8: 2026-04-01 | C8: 泓全 | D8: J06D01AB7 | E8: 210 | F8: =14*2 -> 28 | U8: 成品 | V8: 0.75 | W8: 21
A9: 2026-04-01 | B9: 2026-04-01 | C9: 泓全 | D9: J06D01AS1 | E9: 172 | F9: =14*2 -> 28 | U9: 成品 | V9: 0.75 | W9: 21
A10: 2026-04-01 | B10: 2026-04-02 | C10: 百邦 | D10: 210107J1309MW2 | E10: 500 | F10: 64 | L10: 1 | Q10: 1 | S10: 错缝1 | U10: 成品 | V10: 0.75 | W10: 48
A11: 2026-04-01 | B11: 2026-04-02 | C11: 逸康 | D11: 232408J0100MY3 | E11: 40 | F11: 10 | U11: 成品 | V11: 0.75 | W11: 7.5
A12: 2026-04-01 | B12: 2026-04-02 | C12: 顺优 | D12: 190602J0800MB1 | E12: 433 | F12: 42 | U12: 成品 | V12: 0.75 | W12: 31.5
A13: 2026-04-01 | B13: 2026-04-02 | C13: 顺优 | D13: 190602J0121M1B1 | E13: 100 | F13: 14 | U13: 成品 | V13: 0.75 | W13: 10.5
A14: 2026-04-01 | B14: 2026-04-02 | C14: 顺优 | D14: J62D01QB1 | E14: 400 | F14: 42 | U14: 成品 | V14: 0.75 | W14: 31.5
A15: 2026-04-01 | B15: 2026-04-03 | C15: 华睿 | D15: J07B02B | E15: 588 | F15: 60 | U15: 成品 | V15: 0.75 | W15: 45
A16: 2026-04-01 | B16: 2026-04-03 | C16: 华睿 | D16: J06D01A1 | E16: 500 | F16: 50 | U16: 成品 | V16: 0.75 | W16: 37.5
A17: 2026-04-01 | B17: 2026-04-03 | C17: 华睿 | D17: J06D01AS1-XZNX | E17: 300 | F17: 30 | U17: 裸心 | V17: 0.25 | W17: 7.5
A18: 2026-04-03 | B18: 2026-04-03 | C18: 顺优 | D18: 252103J3100XLB1-SLJ-KB | E18: 800 | F18: 80 | U18: 裸心 | V18: 0.25 | W18: 20
A19: 2026-04-03 | B19: 2026-04-03 | C19: 顺优 | D19: 252103J3100XLB1-SLJ-ZD | E19: 800 | F19: 80 | U19: 裸心 | V19: 0.25 | W19: 20
A20: 2026-04-03 | B20: 2026-04-03 | C20: 顺优 | D20: 242103J3100LB6-SLJ-KB | E20: 2038 | F20: 150 | U20: 裸心 | V20: 0.25 | W20: 37.5
A21: 2026-04-03 | B21: 2026-04-03 | C21: 顺优 | D21: 242103J3100LB6-SLJ-ZD | E21: 2038 | F21: 150 | U21: 裸心 | V21: 0.25 | W21: 37.5
A22: 2026-04-03 | B22: 2026-04-03 | C22: 顺优 | D22: 252103J3100XLP1-HMP-KB | E22: 400 | F22: 40 | U22: 外套 | V22: 0.5 | W22: 20
A23: 2026-04-03 | B23: 2026-04-03 | C23: 顺优 | D23: 252103J3100XLP1-HMP-ZD | E23: 400 | F23: 40 | U23: 外套 | V23: 0.5 | W23: 20
A24: 2026-04-03 | B24: 2026-04-03 | C24: 顺优 | D24: 252103J3100XLB1-HMP-KB | E24: 100 | F24: 10 | U24: 外套 | V24: 0.5 | W24: 5
A25: 2026-04-03 | B25: 2026-04-03 | C25: 顺优 | D25: 252103J3100XLB1-HMP-ZD | E25: 100 | F25: 10 | U25: 外套 | V25: 0.5 | W25: 5
A26: 2026-04-03 | B26: 2026-04-03 | C26: 顺优 | D26: 252103J3100XLS9-HMP-KB | E26: 300 | F26: 30 | U26: 外套 | V26: 0.5 | W26: 15
A27: 2026-04-03 | B27: 2026-04-03 | C27: 顺优 | D27: 252103J3100XLS9-HMP-ZD | E27: 300 | F27: 30 | U27: 外套 | V27: 0.5 | W27: 15
A28: 2026-04-04 | B28: 2026-04-04 | C28: 顾舒家华 | D28: 220606J0100MR4 | E28: 50 | F28: 10 | U28: 成品 | V28: 0.75 | W28: 7.5
A29: 2026-04-04 | B29: 2026-04-04 | C29: 顾舒家华 | D29: 220606J0100MS9 | E29: 220 | F29: 20 | U29: 成品 | V29: 0.75 | W29: 15
A30: 2026-04-04 | B30: 2026-04-04 | C30: 顾舒家华 | D30: 230608J0115MB6 | E30: 300 | F30: 30 | U30: 成品 | V30: 0.75 | W30: 22.5
A31: 2026-04-04 | B31: 2026-04-04 | C31: 顾舒家华 | D31: J06A14BS1-NX | E31: 600 | F31: 60 | U31: 裸心 | V31: 0.25 | W31: 15
A32: 2026-04-04 | B32: 2026-04-04 | C32: 顾舒家华 | D32: 241301J0100MB1 | E32: 150 | F32: 20 | U32: 成品 | V32: 0.75 | W32: 15
A33: 2026-04-06 | B33: 2026-04-06 | C33: 顺优 | D33: 252108J3100XLS9-HMP-KB | E33: 456 | F33: 40 | U33: 外套 | V33: 0.5 | W33: 20
A34: 2026-04-06 | B34: 2026-04-06 | C34: 顺优 | D34: 252108J3100XLS9-HMP-ZD | E34: 456 | F34: 40 | U34: 外套 | V34: 0.5 | W34: 20
A35: 2026-04-06 | B35: 2026-04-06 | C35: 顺优 | D35: 252103J3100XLB1-HMP-KB | E35: 200 | F35: 20 | U35: 外套 | V35: 0.5 | W35: 10
A36: 2026-04-06 | B36: 2026-04-06 | C36: 顺优 | D36: 252103J3100XLB1-HMP-ZD | E36: 200 | F36: 20 | U36: 外套 | V36: 0.5 | W36: 10
A37: 2026-04-07 | B37: 2026-04-07 | C37: 高裕 | D37: J08B06BS1-LX | E37: =210+428 -> 638 | F37: 60 | U37: 裸心 | V37: 0.25 | W37: 15
A38: 2026-04-07 | B38: 2026-04-07 | C38: 高裕 | D38: J08B07BS1 | E38: 352 | F38: 30 | U38: 裸心 | V38: 0.25 | W38: 7.5
A39: 2026-04-07 | B39: 2026-04-07 | C39: 高裕 | D39: J06D05AB7-LX | E39: 320 | F39: 30 | U39: 裸心 | V39: 0.25 | W39: 7.5
A40: 2026-04-07 | B40: 2026-04-07 | C40: 高裕 | D40: J02A04CW2-NX | E40: 420 | F40: 40 | U40: 裸心 | V40: 0.25 | W40: 10
A41: 2026-04-07 | B41: 2026-04-07 | C41: 高裕 | D41: 210703J1500BS1-NX | E41: 200 | F41: 20 | U41: 裸心 | V41: 0.25 | W41: 5
A42: 2026-04-08 | B42: 2026-04-09 | C42: 佳雷 | D42: 252107J0100LB10 | E42: 10 | F42: 2 | S42: 气味重 | U42: 压缩 | V42: 0.8 | W42: 1.6
A43: 2026-04-08 | B43: 2026-04-09 | C43: 佳雷 | D43: 252107J0100LG11 | E43: 70 | F43: 8 | L43: 1 | Q43: 1 | S43: 针孔大1 | U43: 压缩 | V43: 0.8 | W43: 6.4
A44: 2026-04-08 | B44: 2026-04-09 | C44: 合嘉欢 | D44: 260104J0100LB5-NX | E44: 200 | F44: 20 | U44: 压缩 | V44: 0.8 | W44: 16
A45: 2026-04-08 | B45: 2026-04-09 | C45: 合嘉欢 | D45: 260104J0100MB5-NX | E45: 197 | F45: 20 | K45: 1 | Q45: 1 | S45: 布次1 | U45: 压缩 | V45: 0.8 | W45: 16
A46: 2026-04-08 | B46: 2026-04-09 | C46: 顺优 | D46: 242105J3100LB4-01 | E46: 1260 | F46: 120 | U46: 成品 | V46: 0.75 | W46: 90
A47: 2026-04-08 | B47: 2026-04-09 | C47: 顺优 | D47: 242105J3100LB4 | E47: 435 | F47: 45 | U47: 成品 | V47: 0.75 | W47: 33.75
A48: 2026-04-08 | B48: 2026-04-09 | C48: 顺优 | D48: 252108J3100XLB1-SLJ-KB | E48: 1456 | F48: 120 | U48: 裸心 | V48: 0.25 | W48: 30
A49: 2026-04-08 | B49: 2026-04-09 | C49: 顺优 | D49: 252103J3100XLB1-SLJ-KB | E49: 200 | F49: 20 | U49: 裸心 | V49: 0.25 | W49: 5
A50: 2026-04-08 | B50: 2026-04-09 | C50: 顺优 | D50: 252108J3100XLB1-SLJ-ZD | E50: 1656 | F50: 120 | U50: 裸心 | V50: 0.25 | W50: 30
A51: 2026-04-09 | B51: 2026-04-10 | C51: 顺优 | D51: 252108J3100XLP1-HMP-KB | E51: 700 | F51: 70 | U51: 外套 | V51: 0.5 | W51: 35
A52: 2026-04-09 | B52: 2026-04-10 | C52: 顺优 | D52: 252108J3100XLP1-HMP-ZD | E52: 700 | F52: 70 | U52: 外套 | V52: 0.5 | W52: 35
A53: 2026-04-09 | B53: 2026-04-10 | C53: 顺优 | D53: 252108J3100XLB3-HMP-KB | E53: 300 | F53: 30 | U53: 外套 | V53: 0.5 | W53: 15
A54: 2026-04-09 | B54: 2026-04-10 | C54: 顺优 | D54: 252108J3100XLB3-HMP-ZD | E54: 300 | F54: 30 | U54: 外套 | V54: 0.5 | W54: 15
A55: 2026-04-09 | B55: 2026-04-10 | C55: 智善 | D55: 240705J1501MS9-WT | E55: 353 | F55: 50 | U55: 外套 | V55: 0.5 | W55: 25
A56: 2026-04-09 | B56: 2026-04-10 | C56: 智善 | D56: 220702J1511GS1-WT | E56: 314 | F56: 50 | U56: 外套 | V56: 0.5 | W56: 25
A57: 2026-04-09 | B57: 2026-04-10 | C57: 智善 | D57: 210703J1500GS1-WT | E57: 1041 | F57: 100 | U57: 外套 | V57: 0.5 | W57: 50
A58: 2026-04-09 | B58: 2026-04-10 | C58: 智善 | D58: J08B02S1 | E58: 600 | F58: 50 | U58: 外套 | V58: 0.5 | W58: 25
A59: 2026-04-09 | B59: 2026-04-10 | C59: 智善 | D59: J08B06AS1-WT | E59: 600 | F59: 50 | L59: 1 | Q59: 1 | S59: 破洞1 | U59: 外套 | V59: 0.5 | W59: 25
A60: 2026-04-10 | B60: 2026-04-10 | C60: 顺优 | D60: J62D01QB1 | E60: 326 | F60: 35 | U60: 成品 | V60: 0.75 | W60: 26.25
A61: 2026-04-10 | B61: 2026-04-10 | C61: 顺优 | D61: 190602J0800MB1 | E61: 301 | F61: 28 | U61: 成品 | V61: 0.75 | W61: 21
A62: 2026-04-10 | B62: 2026-04-10 | C62: 顺优 | D62: 190602J0121M1B1 | E62: 100 | F62: 14 | U62: 成品 | V62: 0.75 | W62: 10.5
A63: 2026-04-10 | B63: 2026-04-10 | C63: 顺优 | D63: 240614J3100SB1 | E63: 100 | F63: 10 | U63: 成品 | V63: 0.75 | W63: 7.5
A64: 2026-04-10 | B64: 2026-04-11 | C64: 逸康 | D64: 232408J0100MY3 | E64: 260 | F64: 40 | Q64: 1 | S64: 扣子脱落1 | U64: 成品 | V64: 0.75 | W64: 30
A65: 2026-04-10 | B65: 2026-04-11 | C65: 逸康 | D65: 232408J0100MB3 | E65: 240 | F65: 20 | U65: 成品 | V65: 0.75 | W65: 15
A66: 2026-04-10 | B66: 2026-04-11 | C66: 逸康 | D66: 232408J0100MG1 | E66: 100 | F66: 20 | U66: 成品 | V66: 0.75 | W66: =F66*V66 -> 15
A67: 2026-04-10 | B67: 2026-04-11 | C67: 逸康 | D67: J24A15AS1 | E67: 420 | F67: 40 | U67: 成品 | V67: 0.75 | W67: 30
A68: 2026-04-10 | B68: 2026-04-11 | C68: 逸康 | D68: 242402J0100MB6 | E68: 180 | F68: 20 | U68: 成品 | V68: 0.75 | W68: 15
A69: 2026-04-10 | B69: 2026-04-12 | C69: 高裕 | D69: 210703J1500BS1-NX | E69: 300 | F69: 30 | U69: 裸心 | V69: 0.25 | W69: 7.5
A70: 2026-04-10 | B70: 2026-04-12 | C70: 高裕 | D70: 210703J1500GS1-NX | E70: 280 | F70: 30 | U70: 裸心 | V70: 0.25 | W70: 7.5
A71: 2026-04-10 | B71: 2026-04-12 | C71: 高裕 | D71: J06D05AB7-LX | E71: 100 | F71: 10 | U71: 裸心 | V71: 0.25 | W71: 2.5
A72: 2026-04-10 | B72: 2026-04-12 | C72: 高裕 | D72: J08B06BS1-LX | E72: 836 | F72: 80 | J72: 1 | Q72: 1 | S72: 气孔多1 | U72: 裸心 | V72: 0.25 | W72: 20
A73: 2026-04-10 | B73: 2026-04-12 | C73: 高裕 | D73: J08B07BS1-LX | E73: 792 | F73: 80 | U73: 裸心 | V73: 0.25 | W73: 20
A74: 2026-04-10 | B74: 2026-04-12 | C74: 逸科斯 | D74: J13B26AW2NX | E74: 1500 | F74: 120 | Q74: 3 | S74: 大气孔槽1，损坏1，课了不饱满1，内有头发，需提醒工厂 | U74: 裸心 | V74: 0.25 | W74: 30
A75: 2026-04-10 | B75: 2026-04-12 | C75: 大宸 | D75: J06D05AB7-WT | E75: 504 | F75: 50 | U75: 外套 | V75: 0.5 | W75: 25
A76: 2026-04-12 | B76: 2026-04-13 | C76: 顺优 | D76: 252108J3100XLB3-HMP-KB | E76: 600 | F76: 60 | U76: 外套 | V76: 0.5 | W76: 30
A77: 2026-04-12 | B77: 2026-04-13 | C77: 顺优 | D77: 252108J3100XLB3-HMP-ZD | E77: 600 | F77: 60 | N77: 1 | Q77: 1 | S77: 污渍1 | U77: 外套 | V77: 0.5 | W77: 30
A78: 2026-04-12 | B78: 2026-04-13 | C78: 顺优 | D78: 252108J3100XLB3-HMP-KB | E78: 300 | F78: 30 | U78: 外套 | V78: 0.5 | W78: 15
A79: 2026-04-12 | B79: 2026-04-13 | C79: 顺优 | D79: 252108J3100XLB3-HMP-ZD | E79: 300 | F79: 30 | U79: 外套 | V79: 0.5 | W79: 15
A80: 2026-04-12 | B80: 2026-04-13 | C80: 顺优 | D80: 242104J3100LB3-HMP-KB | E80: 902 | F80: 80 | U80: 外套 | V80: 0.5 | W80: 40
A81: 2026-04-12 | B81: 2026-04-13 | C81: 顺优 | D81: 242104J3100LB3-HMP-ZD | E81: 902 | F81: 80 | U81: 外套 | V81: 0.5 | W81: 40
A82: 2026-04-12 | B82: 2026-04-13 | C82: 顺优 | D82: 242104J3100LS9-HMP-KB | E82: 59 | F82: 10 | U82: 外套 | V82: 0.5 | W82: 5
A83: 2026-04-12 | B83: 2026-04-13 | C83: 顺优 | D83: 242104J3100LS9-HMP-ZD | E83: 59 | F83: 10 | U83: 外套 | V83: 0.5 | W83: 5
A84: 2026-04-13 | B84: 2026-04-14 | C84: 华睿 | D84: J07B02B | E84: 300 | F84: 24 | U84: 裸心 | V84: 0.25 | W84: 6
A85: 2026-04-13 | B85: 2026-04-14 | C85: 华睿 | D85: 240104J0100MB3 | E85: 147 | F85: 14 | U85: 成品 | V85: 0.75 | W85: 10.5
A86: 2026-04-13 | B86: 2026-04-14 | C86: 华睿 | D86: J25D02AS1 | E86: 400 | F86: 48 | S86: 包装袋装反 | U86: 成品 | V86: 0.75 | W86: 36
A87: 2026-04-13 | B87: 2026-04-14 | C87: 华睿 | D87: J25D02BS1 | E87: 352 | F87: 32 | Q87: 2 | S87: 包装袋装反，漏沙1错缝1 | U87: 成品 | V87: 0.75 | W87: 24
A88: 2026-04-13 | B88: 2026-04-14 | C88: 华睿 | D88: J06D01AB7 | E88: 150 | F88: 20 | U88: 成品 | V88: 0.75 | W88: 15
A89: 2026-04-13 | B89: 2026-04-14 | C89: 顺优 | D89: 252102J3100LB4 | E89: 200 | F89: 20 | U89: 成品 | V89: 0.75 | W89: 15
A90: 2026-04-13 | B90: 2026-04-14 | C90: 顺优 | D90: 252108J3100XLB3-SLJ-KB | E90: 900 | F90: 90 | U90: 裸心 | V90: 0.25 | W90: 22.5
A91: 2026-04-13 | B91: 2026-04-14 | C91: 顺优 | D91: 252108J3100XLB3-SLJ-ZD | E91: 900 | F91: 90 | U91: 裸心 | V91: 0.25 | W91: 22.5
A92: 2026-04-13 | B92: 2026-04-14 | C92: 顺优 | D92: 252108J0100LB3-SLJ-KB | E92: 960 | F92: 90 | U92: 裸心 | V92: 0.25 | W92: 22.5
A93: 2026-04-13 | B93: 2026-04-14 | C93: 顺优 | D93: 252108J0100LB3-SLJ-ZD | E93: 960 | F93: 90 | U93: 裸心 | V93: 0.25 | W93: 22.5
A94: 2026-04-14 | B94: 2026-04-15 | C94: 泓全 | D94: J26C06ZS1 | E94: 362 | F94: 20 | U94: 成品 | V94: 0.75 | W94: 15
A95: 2026-04-14 | B95: 2026-04-15 | C95: 泓全 | D95: J06D01AS1 | E95: 350 | F95: 42 | U95: 成品 | V95: 0.75 | W95: 31.5
A96: 2026-04-14 | B96: 2026-04-15 | C96: 泓全 | D96: 240701J1502MY1-WT | E96: 260 | F96: 30 | U96: 外套 | V96: 0.5 | W96: 15
A97: 2026-04-14 | B97: 2026-04-15 | C97: 泓全 | D97: 240701J1503MS9-WT | E97: 487 | F97: 50 | L97: 1 | Q97: 1 | S97: 皱褶1 | U97: 外套 | V97: 0.5 | W97: 25
A98: 2026-04-14 | B98: 2026-04-15 | C98: 泓全 | D98: J17B12AS9WT | E98: 435 | F98: 50 | U98: 外套 | V98: 0.5 | W98: 25
A99: 2026-04-14 | B99: 2026-04-15 | C99: 泓全 | D99: 242502J1500MS9-WT | E99: 141 | F99: 20 | U99: 外套 | V99: 0.5 | W99: 10
A100: 2026-04-14 | B100: 2026-04-15 | C100: 泓全 | D100: 260104J0100MB5-WT | E100: 55 | F100: 10 | U100: 外套 | V100: 0.5 | W100: 5
A101: 2026-04-14 | B101: 2026-04-15 | C101: 泓全 | D101: 260104J0100LB5-WT | E101: 55 | F101: 10 | U101: 外套 | V101: 0.5 | W101: 5
A102: 2026-04-15 | B102: 2026-04-16 | C102: 智善 | D102: 210703J1500GB3-WT | E102: 400 | F102: 50 | U102: 外套 | V102: 0.5 | W102: 25
A103: 2026-04-17 | B103: 2026-04-17 | C103: 众羽 | D103: 242101J3100LB6 | E103: 320 | F103: 30 | U103: 成品 | V103: 0.75 | W103: 22.5
A104: 2026-04-17 | B104: 2026-04-17 | C104: 顾舒家华 | D104: J06A14BS1-NX | E104: 300 | F104: 30 | U104: 裸心 | V104: 0.25 | W104: 7.5
A105: 2026-04-17 | B105: 2026-04-17 | C105: 顾舒家华 | D105: 220606J0100MR4 | E105: 100 | F105: 10 | U105: 成品 | V105: 0.75 | W105: 7.5
A106: 2026-04-17 | B106: 2026-04-17 | C106: 顾舒家华 | D106: 220606J0100MS9 | E106: 170 | F106: 20 | U106: 成品 | V106: 0.75 | W106: 15
A107: 2026-04-17 | B107: 2026-04-17 | C107: 顾舒家华 | D107: 241201J0100MB1 | E107: =54+15 -> 69 | F107: 18 | U107: 成品 | V107: 0.75 | W107: 13.5
A108: 2026-04-17 | B108: 2026-04-17 | C108: 顾舒家华 | D108: 240604J0100MB1 | E108: 96 | F108: 12 | U108: 成品 | V108: 0.75 | W108: 9
A109: 2026-04-17 | B109: 2026-04-18 | C109: 泓全 | D109: J26C06YS1 | E109: 210 | F109: 20 | U109: 成品 | V109: 0.75 | W109: 15
A110: 2026-04-17 | B110: 2026-04-19 | C110: 泓全 | D110: 240606J1501MY1-WT | E110: =180+124 -> 304 | F110: 30 | U110: 外套 | V110: 0.5 | W110: 15
A111: 2026-04-17 | B111: 2026-04-19 | C111: 泓全 | D111: 240701J1502MS9-WT | E111: 230 | F111: 30 | U111: 外套 | V111: 0.5 | W111: 15
A112: 2026-04-17 | B112: 2026-04-19 | C112: 泓全 | D112: J06D01AB7 | E112: 125 | F112: 14 | U112: 成品 | V112: 0.75 | W112: 10.5
A113: 2026-04-17 | B113: 2026-04-19 | C113: 泓全 | D113: J17B12AR4WT | E113: 402 | F113: 40 | U113: 外套 | V113: 0.5 | W113: 20
A114: 2026-04-17 | B114: 2026-04-19 | C114: 泓全 | D114: 260104J0100LB5-WT | E114: 122 | F114: 15 | U114: 外套 | V114: 0.5 | W114: 7.5
A115: 2026-04-17 | B115: 2026-04-19 | C115: 泓全 | D115: 260104J0100MB5-WT | E115: 133 | F115: 15 | U115: 外套 | V115: 0.5 | W115: 7.5
A116: 2026-04-17 | B116: 2026-04-19 | C116: 泓全 | D116: 240606J1500MS9-WT | E116: 325 | F116: 30 | U116: 外套 | V116: 0.5 | W116: 15
A117: 2026-04-17 | B117: 2026-04-19 | C117: 泓全 | D117: 240108J0100LS9-WT | E117: 50 | F117: 10 | U117: 外套 | V117: 0.5 | W117: 5
A118: 2026-04-17 | B118: 2026-04-19 | C118: 泓全 | D118: 240108J0100LP1-WT | E118: 50 | F118: 10 | U118: 外套 | V118: 0.5 | W118: 5
A119: 2026-04-17 | B119: 2026-04-20 | C119: 泓全 | D119: 245101JK0900LB7 | E119: 364 | F119: 15 | U119: 被子 | V119: 1 | W119: 15
A120: 2026-04-17 | B120: 2026-04-20 | C120: 泓全 | D120: 245101JK0900MB7 | E120: 978 | F120: 30 | U120: 被子 | V120: 1 | W120: 30
A121: 2026-04-18 | B121: 2026-04-20 | C121: 逸康 | D121: J24A15AS1 | E121: 400 | F121: 40 | U121: 成品 | V121: 0.75 | W121: 30
A122: 2026-04-18 | B122: 2026-04-20 | C122: 逸康 | D122: J07B08AB7 | E122: 50 | F122: 10 | U122: 成品 | V122: 0.75 | W122: 7.5
A123: 2026-04-18 | B123: 2026-04-20 | C123: 逸康 | D123: 192001J0111MW2 | E123: 40 | F123: 8 | U123: 成品 | V123: 0.75 | W123: 6
A124: 2026-04-18 | B124: 2026-04-20 | C124: 逸康 | D124: 210709J1500MS1-NX | E124: 190 | F124: 20 | U124: 裸心 | V124: 0.25 | W124: 5
A125: 2026-04-18 | B125: 2026-04-20 | C125: 大宸 | D125: 200801J0117MB7-WT | E125: 500 | F125: 50 | U125: 外套 | V125: 0.5 | W125: 25
A126: 2026-04-19 | B126: 2026-04-20 | C126: 爱德福 | D126: J17B07AS9NX | E126: 500 | F126: 50 | U126: 裸心 | V126: 0.25 | W126: 12.5
A127: 2026-04-19 | B127: 2026-04-20 | C127: 爱德福 | D127: J17B06AS9NX | E127: 500 | F127: 45 | U127: 裸心 | V127: 0.25 | W127: 11.25
A128: 2026-04-19 | B128: 2026-04-20 | C128: 华睿 | D128: 220604J0100MB2 | E128: 588 | F128: 60 | U128: 成品 | V128: 0.75 | W128: =F128*V132 -> 15
A129: 2026-04-19 | B129: 2026-04-20 | C129: 华睿 | D129: J25D02AS1 | E129: 96 | F129: 16 | S129: 袋子装反 | U129: 成品 | V129: 0.75 | W129: =F129*V129 -> 12
A130: 2026-04-19 | B130: 2026-04-20 | C130: 华睿 | D130: J25D02BS1 | E130: 144 | F130: 16 | S130: 袋子装反，大气孔1 | U130: 成品 | V130: 0.75 | W130: 12
A131: 2026-04-19 | B131: 2026-04-20 | C131: 华睿 | D131: J25D02AS1-WT | E131: 234 | F131: 25 | S131: 拆分1 | U131: 外套 | V131: 0.5 | W131: 12.5
A132: 2026-04-19 | B132: 2026-04-20 | C132: 华睿 | D132: J02B05AW2-LX | E132: 204 | F132: 20 | U132: 裸心 | V132: 0.25 | W132: 5
A133: 2026-04-19 | B133: 2026-04-20 | C133: 华睿 | D133: J06D01AS1 | E133: 260 | F133: 30 | S133: 开线1 | U133: 成品 | V133: 0.75 | W133: 22.5
A134: 2026-04-19 | B134: 2026-04-21 | C134: 高裕 | D134: 210703J1500GS1-NX | E134: 220 | F134: 20 | U134: 裸心 | V134: 0.25 | W134: 5
A135: 2026-04-19 | B135: 2026-04-21 | C135: 高裕 | D135: J02A07AW2-NX | E135: 500 | F135: 50 | U135: 裸心 | V135: 0.25 | W135: 12.5
A136: 2026-04-19 | B136: 2026-04-21 | C136: 高裕 | D136: J02A07CW2-NX | E136: 300 | F136: 30 | U136: 裸心 | V136: 0.25 | W136: 7.5
A137: 2026-04-19 | B137: 2026-04-21 | C137: 高裕 | D137: 220702J1511B | E137: 300 | F137: 30 | U137: 裸心 | V137: 0.25 | W137: 7.5
A138: 2026-04-19 | B138: 2026-04-21 | C138: 高裕 | D138: J08B07BS1-LX | E138: =366+514 -> 880 | F138: 80 | U138: 裸心 | V138: 0.25 | W138: 20
A139: 2026-04-19 | B139: 2026-04-21 | C139: 顺优 | D139: 252108J3100XLS9-HMP-KB | E139: =440+300 -> 740 | F139: 70 | U139: 外套 | V139: 0.5 | W139: 35
A140: 2026-04-19 | B140: 2026-04-21 | C140: 顺优 | D140: 252108J3100XLS9-HMP-ZD | E140: 440 | F140: 50 | U140: 外套 | V140: 0.5 | W140: 25
A141: 2026-04-19 | B141: 2026-04-21 | C141: 顺优 | D141: 252108J3100XLP1-HMP-KB | E141: 400 | F141: 40 | U141: 外套 | V141: 0.5 | W141: 20
A142: 2026-04-22 | B142: 2026-04-22 | C142: 顺优 | D142: 190602J0108MB7 | E142: 196 | F142: 21 | U142: 成品 | V142: 0.75 | W142: 15.75
A143: 2026-04-22 | B143: 2026-04-22 | C143: 顺优 | D143: 230601J0100MB1 | E143: =332-3 -> 329 | F143: 35 | U143: 成品 | V143: 0.75 | W143: 26.25
A144: 2026-04-22 | B144: 2026-04-22 | C144: 顺优 | D144: 230610J0108MB6 | E144: 105 | F144: 14 | U144: 成品 | V144: 0.75 | W144: 10.5
A145: 2026-04-22 | B145: 2026-04-22 | C145: 顺优 | D145: 190602J0800MB1 | E145: 504 | F145: 49 | U145: 成品 | V145: 0.75 | W145: 36.75
A146: 2026-04-22 | B146: 2026-04-22 | C146: 顺优 | D146: 240614J3100SB1 | E146: 100 | F146: 10 | U146: 成品 | V146: 0.75 | W146: 7.5
A147: 2026-04-22 | B147: 2026-04-22 | C147: 顺优 | D147: 240605J0108MB1-ZT | E147: 154 | F147: 14 | U147: 成品 | V147: 0.75 | W147: 10.5
A148: 2026-04-22 | B148: 2026-04-22 | C148: 顺优 | D148: 240605J0108MB1-ZTXZ | E148: 154 | F148: 20 | U148: 外套 | V148: 0.5 | W148: 10
A149: 2026-04-22 | B149: 2026-04-23 | C149: 逸康 | D149: J02B05AW2-LX | E149: 546 | F149: 50 | U149: 裸心 | V149: 0.25 | W149: 12.5
A150: 2026-04-22 | B150: 2026-04-23 | C150: 高裕 | D150: J06A22AS1 | E150: 160 | F150: 16 | U150: 压缩 | V150: 0.8 | W150: 12.8
A151: 2026-04-22 | B151: 2026-04-23 | C151: 高裕 | D151: 210703J1500BS1-NX | E151: 180 | F151: 20 | S151: 外箱标识不符 | U151: 裸心 | V151: 0.25 | W151: 5
A152: 2026-04-22 | B152: 2026-04-23 | C152: 高裕 | D152: 210703J1500GS1-NX | E152: 300 | F152: 30 | S152: 外箱标识不符 | U152: 裸心 | V152: 0.25 | W152: 7.5
A153: 2026-04-22 | B153: 2026-04-23 | C153: 高裕 | D153: J02A04CW2-NX | E153: 300 | F153: 30 | U153: 裸心 | V153: 0.25 | W153: 7.5
A154: 2026-04-22 | B154: 2026-04-23 | C154: 高裕 | D154: J08B07BS1-LX | E154: 506 | F154: 66 | U154: 裸心 | V154: 0.25 | W154: 16.5
A155: 2026-04-22 | B155: 2026-04-23 | C155: 高裕 | D155: J08B06BS1-LX | E155: 1584 | F155: 132 | U155: 裸心 | V155: 0.25 | W155: 33
A156: 2026-04-24 | B156: 2026-04-24 | C156: 泓全 | D156: J26C06YS1 | E156: 210 | F156: 15 | U156: 被子 | V156: 1 | W156: 15
A157: 2026-04-24 | B157: 2026-04-24 | C157: 泓全 | D157: J17B12AS9WT | E157: 114 | F157: 20 | U157: 外套 | V157: 0.5 | W157: 10
A158: 2026-04-24 | B158: 2026-04-24 | C158: 泓全 | D158: J02A04CW2-WT | E158: 612 | F158: 60 | U158: 外套 | V158: 0.5 | W158: 30
A159: 2026-04-24 | B159: 2026-04-24 | C159: 泓全 | D159: 232407J0100MB3-WT | E159: 200 | F159: 20 | U159: 外套 | V159: 0.5 | W159: 10
A160: 2026-04-24 | B160: 2026-04-24 | C160: 泓全 | D160: 240701J1502MY1-WT | E160: 250 | F160: 30 | U160: 外套 | V160: 0.5 | W160: 15
A161: 2026-04-24 | B161: 2026-04-24 | C161: 泓全 | D161: 240701J1502MS9-WT | E161: 280 | F161: 35 | U161: 外套 | V161: 0.5 | W161: 17.5
A162: 2026-04-24 | B162: 2026-04-24 | C162: 泓全 | D162: J06D02AS1 | E162: 65 | F162: 16 | U162: 成品 | V162: 0.75 | W162: 12
A163: 2026-04-24 | B163: 2026-04-24 | C163: 泓全 | D163: J06D02AB7 | E163: 111 | F163: 15 | U163: 成品 | V163: 0.75 | W163: 11.25
A164: 2026-04-24 | B164: 2026-04-24 | C164: 泓全 | D164: J02A07AW2-WT | E164: 526 | F164: 60 | U164: 外套 | V164: 0.5 | W164: 30
A165: 2026-04-24 | B165: 2026-04-24 | C165: 泓全 | D165: 240108J0100LS9-WT | E165: 100 | F165: 15 | U165: 外套 | V165: 0.5 | W165: 7.5
A166: 2026-04-24 | B166: 2026-04-24 | C166: 泓全 | D166: 240108J0100LP1-WT | E166: 145 | F166: 20 | U166: 外套 | V166: 0.5 | W166: 10
A167: 2026-04-24 | B167: 2026-04-24 | C167: 泓全 | D167: 172601J0100SS1 | E167: 500 | F167: 30 | U167: 被子 | V167: 1 | W167: 30
A168: 2026-04-23 | B168: 2026-04-25 | C168: 众羽 | D168: 242101J3100LB6 | E168: 180 | F168: 20 | U168: 成品 | V168: 0.75 | W168: 15
A169: 2026-04-23 | B169: 2026-04-25 | C169: 顺优 | D169: 242103J3100LB1-HMP-KB | E169: 388 | F169: 40 | U169: 外套 | V169: 0.5 | W169: 20
A170: 2026-04-23 | B170: 2026-04-25 | C170: 顺优 | D170: 242103J3100LB1-HMP-ZD | E170: 388 | F170: 40 | U170: 外套 | V170: 0.5 | W170: 20
A171: 2026-04-23 | B171: 2026-04-25 | C171: 顺优 | D171: 242103J3100LB6-HMP-KB | E171: 327 | F171: 30 | U171: 外套 | V171: 0.5 | W171: 15
A172: 2026-04-23 | B172: 2026-04-25 | C172: 顺优 | D172: 242103J3100LB6-HMP-ZD | E172: 327 | F172: 30 | U172: 外套 | V172: 0.5 | W172: 15
A173: 2026-04-26 | B173: 2026-04-27 | C173: 顺优 | D173: 242103J3100LB1-HMP-KB | E173: 561 | F173: 50 | U173: 外套 | V173: 0.5 | W173: 25
A174: 2026-04-26 | B174: 2026-04-27 | C174: 顺优 | D174: 242103J3100LB1-HMP-ZD | E174: 561 | F174: 50 | U174: 外套 | V174: 0.5 | W174: 25
A175: 2026-04-26 | B175: 2026-04-27 | C175: 顺优 | D175: 252108J3100XLB3-HMP-KB | E175: 532 | F175: 50 | U175: 外套 | V175: 0.5 | W175: 25
A176: 2026-04-26 | B176: 2026-04-27 | C176: 顺优 | D176: 252108J3100XLB3-HMP-ZD | E176: 304 | F176: 35 | U176: 外套 | V176: 0.5 | W176: 17.5
A177: 2026-04-26 | B177: 2026-04-27 | C177: 顺优 | D177: 242103J3100LR4-HMP-KB | E177: 233 | F177: 30 | U177: 外套 | V177: 0.5 | W177: 15
A178: 2026-04-26 | B178: 2026-04-27 | C178: 顺优 | D178: 242103J3100LR4-HMP-ZD | E178: 233 | F178: 30 | U178: 外套 | V178: 0.5 | W178: 15
A179: 2026-04-26 | B179: 2026-04-27 | C179: 顺优 | D179: 242103J3100LG1-HMP-KB | E179: 137 | F179: 20 | U179: 外套 | V179: 0.5 | W179: 10
A180: 2026-04-26 | B180: 2026-04-27 | C180: 顺优 | D180: 242103J3100LG1-HMP-ZD | E180: 137 | F180: 20 | U180: 外套 | V180: 0.5 | W180: 10
A181: 2026-04-28 | B181: 2026-04-29 | C181: 顾舒家华 | D181: J06A14BS1-NX | E181: 500 | F181: 50 | K181: 1 | Q181: 1 | S181: 开线1 | U181: 裸心 | V181: 0.25 | W181: 12.5
A182: 2026-04-28 | B182: 2026-04-29 | C182: 顾舒家华 | D182: J06D06AB7 | E182: 512 | F182: 64 | U182: 成品 | V182: 0.75 | W182: 48
A183: 2026-04-28 | B183: 2026-04-29 | C183: 顾舒家华 | D183: J06D06AB7-NX | E183: 300 | F183: 30 | U183: 裸心 | V183: 0.25 | W183: 7.5
A184: 2026-04-28 | B184: 2026-04-29 | C184: 顾舒家华 | D184: 240701J0100MB3 | E184: 192 | F184: 16 | R184: 192 | S184: 污渍1，气孔槽修补8 | U184: 成品 | V184: 0.75 | W184: 12
A185: 2026-04-28 | B185: 2026-04-29 | C185: 智善 | D185: 240705J1502MB2-WT | E185: 363 | F185: 40 | U185: 外套 | V185: 0.5 | W185: 20
A186: 2026-04-28 | B186: 2026-04-29 | C186: 智善 | D186: J08B02S1 | E186: 615 | F186: 60 | U186: 外套 | V186: 0.5 | W186: 30
A187: 2026-04-30 | B187: 2026-04-30 | C187: 高裕 | D187: 240701J1501MB1 | E187: 432 | F187: 50 | U187: 成品 | V187: 0.75 | W187: 37.5
A188: 2026-04-30 | B188: 2026-04-30 | C188: 高裕 | D188: 210703J1500BS1-NX | E188: 560 | F188: 60 | U188: 裸心 | V188: 0.25 | W188: 15
A189: 2026-04-30 | B189: 2026-04-30 | C189: 高裕 | D189: 210703J1500GS1-NX | E189: =380+120 -> 500 | F189: 40 | U189: 裸心 | V189: 0.25 | W189: 10
A190: 2026-04-30 | B190: 2026-04-30 | C190: 高裕 | D190: J08B06BS1-LX | E190: 330 | F190: 44 | U190: 裸心 | V190: 0.25 | W190: 11
A191: 2026-04-30 | B191: 2026-04-30 | C191: 高裕 | D191: J02A04AW2 | E191: 508 | F191: 64 | U191: 成品 | V191: 0.75 | W191: 48
A192: 2026-04-30 | B192: 2026-04-30 | C192: 高裕 | D192: 240101J0100MW1 | E192: =140+372 -> 512 | F192: 20 | U192: 成品 | V192: 0.75 | W192: 15
A193: 2026-04-30 | B193: 2026-04-30 | C193: 顺优 | D193: 252108J3100XLB1-HMP-KB | E193: 300 | F193: 30 | U193: 外套 | V193: 0.5 | W193: =F193*V193 -> 15
A194: 2026-04-30 | B194: 2026-04-30 | C194: 顺优 | D194: 252108J3100XLB1-HMP-ZD | E194: 300 | F194: 30 | U194: 外套 | V194: 0.5 | W194: 15
W195: 0
W196: 0
W197: 0
W198: 0
W199: 0
W200: 0
... 15 more rows

Sheet 3月
A1: 来货日期 | B1: 验货日期 | C1: 供应商 | D1: 商品编码 | E1: 来货数量 | F1: 抽检/个数 | G1: 手感 | H1: 气味 | I1: 克重 | J1: 内芯 | K1: 布料 | L1: 缝制 | M1: 拉链 | N1: 卫生 | O1: 条码 | P1: 洗水标 | Q1: 不合格/个 | R1: 大批次品 | S1: 问题描述 | T1: 检验员 | U1: 品类 | V1: 单价 | W1: 总价 | X1: 克重
A2: 2026-03-05 | B2: 2026-03-05 | C2: 顺优 | D2: 252108J3100XLB3-HMP-KB | E2: 762 | F2: 70 | U2: 外套 | V2: 0.5 | W2: =F2*V2 -> 35
A3: 2026-03-05 | B3: 2026-03-05 | C3: 顺优 | D3: 252108J3100XLB3-HMP-ZD | E3: 762 | F3: 70 | U3: 外套 | V3: 0.5 | W3: =F3*V3 -> 35
A4: 2026-03-05 | B4: 2026-03-05 | C4: 顺优 | D4: 252108J3100XLS9-HMP-KB | E4: 410 | F4: 50 | U4: 外套 | V4: 0.5 | W4: 25
A5: 2026-03-05 | B5: 2026-03-05 | C5: 顺优 | D5: 252108J3100XLS9-HMP-ZD | E5: 410 | F5: 50 | U5: 外套 | V5: 0.5 | W5: 25
A6: 2026-03-05 | B6: 2026-03-05 | C6: 顺优 | D6: 252108J3100XLP1-HMP-KB | E6: 758 | F6: 70 | U6: 外套 | V6: 0.5 | W6: 35
A7: 2026-03-05 | B7: 2026-03-05 | C7: 顺优 | D7: 252108J3100XLP1-HMP-ZD | E7: 758 | F7: 70 | U7: 外套 | V7: 0.5 | W7: 35
A8: 2026-03-05 | B8: 2026-03-05 | C8: 华睿 | D8: 250606J01XHZMB7 | E8: 200 | F8: 20 | Q8: 1 | S8: 小枕粘条缝反1气孔大1 | U8: 成品 | V8: 0.75 | W8: 15
A9: 2026-03-05 | B9: 2026-03-05 | C9: 华睿 | D9: J07B08AS1 | E9: 240 | F9: 24 | U9: 成品 | V9: 0.75 | W9: 18
A10: 2026-03-05 | B10: 2026-03-05 | C10: 华睿 | D10: J02B05AW2-LX | E10: 588 | F10: 60 | Q10: 4 | S10: 污渍4，内有气孔，内有气孔摸上去不平整 | U10: 裸心 | V10: 0.25 | W10: 15
A11: 2026-03-05 | B11: 2026-03-06 | C11: 顺优 | D11: 252108J3100XLB1-SLJ-KB | E11: 1500 | F11: 120 | U11: 裸心 | V11: 0.25 | W11: 30
A12: 2026-03-05 | B12: 2026-03-06 | C12: 顺优 | D12: 252108J3100XLB1-SLJ-ZD | E12: 1500 | F12: 120 | U12: 裸心 | V12: 0.25 | W12: 30
A13: 2026-03-05 | B13: 2026-03-06 | C13: 泓全 | D13: 245101JK0900MB7 | E13: 1050 | F13: 36 | U13: 被子 | V13: 1 | W13: 36
A14: 2026-03-05 | B14: 2026-03-06 | C14: 泓全 | D14: 260102J0138LS17 | E14: 41 | F14: 5 | U14: 压缩 | V14: 0.8 | W14: 4
A15: 2026-03-05 | B15: 2026-03-06 | C15: 泓全 | D15: 240606J1500MY1-WT | E15: 3 | F15: 3 | U15: 外套 | V15: 0.5 | W15: 1.5
A16: 2026-03-05 | B16: 2026-03-06 | C16: 泓全 | D16: 240606J1501MS9-WT | E16: 291 | F16: 30 | U16: 外套 | V16: 0.5 | W16: 15
A17: 2026-03-05 | B17: 2026-03-06 | C17: 泓全 | D17: J26C06YS1 | E17: 240 | F17: 20 | U17: 被子 | V17: 1 | W17: 20
A18: 2026-03-05 | B18: 2026-03-06 | C18: 泓全 | D18: 172601J0100SS1 | E18: 488 | F18: 25 | U18: 被子 | V18: 1 | W18: 25
A19: 2026-03-05 | B19: 2026-03-06 | C19: 泓全 | D19: 230702J0200MS9-WT | E19: 118 | F19: 20 | U19: 外套 | V19: 0.5 | W19: 10
A20: 2026-03-06 | B20: 2026-03-07 | C20: 智善 | D20: 210703J1500GB3-WT | E20: 209 | F20: 25 | U20: 外套 | V20: 0.5 | W20: 12.5
A21: 2026-03-06 | B21: 2026-03-07 | C21: 智善 | D21: 220702J1511GS1-WT | E21: 200 | F21: 20 | U21: 外套 | V21: 0.5 | W21: 10
A22: 2026-03-06 | B22: 2026-03-07 | C22: 智善 | D22: 210703J1500GS1-WT | E22: 252 | F22: 30 | U22: 外套 | V22: 0.5 | W22: 15
A23: 2026-03-06 | B23: 2026-03-08 | C23: 智善 | D23: J08B06AS1-WT | E23: 600 | F23: 60 | U23: 外套 | V23: 0.5 | W23: 30
A24: 2026-03-06 | B24: 2026-03-08 | C24: 智善 | D24: 214002J0117MS1-WT | E24: 205 | F24: 20 | U24: 外套 | V24: 0.5 | W24: 10
A25: 2026-03-06 | B25: 2026-03-08 | C25: 顾舒家华 | D25: 230608J0115MB6 | E25: 130 | F25: 20 | U25: 成品 | V25: 0.75 | W25: 15
A26: 2026-03-06 | B26: 2026-03-08 | C26: 顾舒家华 | D26: 231302J0100MB1 | E26: 100 | F26: 10 | U26: 成品 | V26: 0.75 | W26: 7.5
A27: 2026-03-06 | B27: 2026-03-08 | C27: 顾舒家华 | D27: 231202J0100MB1 | E27: 60 | F27: 10 | U27: 成品 | V27: 0.75 | W27: 7.5
A28: 2026-03-06 | B28: 2026-03-08 | C28: 顾舒家华 | D28: 240604J0100MB1 | E28: 84 | F28: 12 | U28: 成品 | V28: 0.75 | W28: 9
A29: 2026-03-06 | B29: 2026-03-09 | C29: 顾舒家华 | D29: J06D06AB7-NX | E29: 300 | F29: 30 | U29: 裸心 | V29: 0.25 | W29: 7.5
A30: 2026-03-06 | B30: 2026-03-09 | C30: 顾舒家华 | D30: J06D06AB7 | E30: 240 | F30: 32 | U30: 成品 | V30: 0.75 | W30: 24
A31: 2026-03-06 | B31: 2026-03-09 | C31: 顾舒家华 | D31: J06A14BB7 | E31: 300 | F31: 30 | U31: 成品 | V31: 0.75 | W31: 22.5
A32: 2026-03-06 | B32: 2026-03-09 | C32: 顾舒家华 | D32: 210123J0120MS9-ZT | E32: 60 | F32: 10 | U32: 加热 | V32: 1 | W32: 10
A33: 2026-03-07 | B33: 2026-03-09 | C33: 鸿业 | D33: 214002J0117MS1-LX | E33: 300 | F33: 30 | N33: 1 | Q33: 2 | S33: 污渍1，按键不灵敏1，个别有轻微氧化现象 | U33: 裸心 | V33: 0.25 | W33: 7.5
A34: 2026-03-07 | B34: 2026-03-09 | C34: 泓全 | D34: J17B12AS9-WT | E34: 156 | F34: 20 | U34: 外套 | V34: 0.5 | W34: 10
A35: 2026-03-07 | B35: 2026-03-09 | C35: 奋力 | D35: 252101J1700SB5 | E35: 100 | F35: 10 | S35: 魔术贴缝制位置与之前不符，魔术贴非缝制1 | U35: 盒装 | V35: 1 | W35: 10
A36: 2026-03-07 | B36: 2026-03-09 | C36: 高裕 | D36: J08B06BS1-LX | E36: 350 | F36: 35 | U36: 裸心 | V36: 0.25 | W36: 8.75
A37: 2026-03-07 | B37: 2026-03-09 | C37: 高裕 | D37: 210703J1500BS1-NX | E37: 500 | F37: 50 | U37: 裸心 | V37: 0.25 | W37: 12.5
A38: 2026-03-07 | B38: 2026-03-09 | C38: 高裕 | D38: 210703J1500GS1-NX | E38: 500 | F38: 50 | U38: 裸心 | V38: 0.25 | W38: 12.5
A39: 2026-03-11 | B39: 2026-03-11 | C39: 泓全 | D39: J17B12AS9-WT | E39: 200 | F39: 20 | U39: 外套 | V39: 0.5 | W39: 10
A40: 2026-03-12 | B40: 2026-03-12 | C40: 智善 | D40: 210703J1500GS1-WT | E40: 60 | F40: 10 | U40: 外套 | V40: 0.5 | W40: =F40*V40 -> 5
A41: 2026-03-12 | B41: 2026-03-12 | C41: 智善 | D41: J08B06AS1-WT | E41: 250 | F41: 25 | U41: 外套 | V41: 0.5 | W41: 12.5
A42: 2026-03-12 | B42: 2026-03-12 | C42: 智善 | D42: 214002J0117MS1-WT | E42: 210 | F42: 20 | U42: 外套 | V42: 0.5 | W42: 10
A43: 2026-03-12 | B43: 2026-03-12 | C43: 智善 | D43: J13B26AW2-WTXX | E43: 835 | F43: 80 | U43: 外套 | V43: 0.5 | W43: 40
A44: 2026-03-12 | B44: 2026-03-12 | C44: 高裕 | D44: J08B06BS1-LX | E44: 600 | F44: 60 | U44: 裸心 | V44: 0.25 | W44: 15
A45: 2026-03-12 | B45: 2026-03-12 | C45: 高裕 | D45: 240101J0100MW1 | E45: 196 | F45: 10 | U45: 压缩 | V45: 0.8 | W45: 8
A46: 2026-03-12 | B46: 2026-03-12 | C46: 高裕 | D46: 240701J1501MB1 | E46: 300 | F46: 36 | U46: 成品 | V46: 0.75 | W46: 27
A47: 2026-03-12 | B47: 2026-03-13 | C47: 顺优 | D47: 190602J0800MB1 | E47: 300 | F47: 35 | U47: 成品 | V47: 0.75 | W47: 26.25
A48: 2026-03-12 | B48: 2026-03-13 | C48: 顺优 | D48: 242105J3100LB4-01 | E48: 540 | F48: 60 | U48: 成品 | V48: 0.75 | W48: 45
A49: 2026-03-12 | B49: 2026-03-14 | C49: 顺优 | D49: 252108J3100XLB1-SLJ-KB | E49: 430 | F49: 40 | U49: 裸心 | V49: 0.25 | W49: 10
A50: 2026-03-12 | B50: 2026-03-14 | C50: 顺优 | D50: 252108J3100XLB1-SLJ-ZD | E50: 430 | F50: 40 | U50: 裸心 | V50: 0.25 | W50: 10
A51: 2026-03-12 | B51: 2026-03-14 | C51: 顺优 | D51: 242103J3100LB1-SLJ-KB | E51: 500 | F51: 50 | U51: 裸心 | V51: 0.25 | W51: 12.5
A52: 2026-03-12 | B52: 2026-03-14 | C52: 顺优 | D52: 242103J3100LB1-SLJ-ZD | E52: 500 | F52: 50 | U52: 裸心 | V52: 0.25 | W52: 12.5
A53: 2026-03-13 | B53: 2026-03-15 | C53: 泓全 | D53: 240701J1502MS9-WT | E53: 502 | F53: 50 | N53: 2 | Q53: 2 | S53: 污渍2 | U53: 外套 | V53: 0.5 | W53: 25
A54: 2026-03-13 | B54: 2026-03-15 | C54: 泓全 | D54: J17B12AS9-WT | E54: 68 | F54: 10 | U54: 外套 | V54: 0.5 | W54: 5
A55: 2026-03-13 | B55: 2026-03-15 | C55: 泓全 | D55: J17B14AR4-WT | E55: 149 | F55: 15 | U55: 外套 | V55: 0.5 | W55: 7.5
A56: 2026-03-13 | B56: 2026-03-15 | C56: 泓全 | D56: J02A07AW2-WT | E56: 618 | F56: 60 | N56: 1 | Q56: 1 | S56: 污渍1 | U56: 外套 | V56: 0.5 | W56: 30
A57: 2026-03-13 | B57: 2026-03-15 | C57: 泓全 | D57: J06D02AB7 | E57: 192 | F57: 20 | U57: 成品 | V57: 0.75 | W57: 15
A58: 2026-03-13 | B58: 2026-03-15 | C58: 泓全 | D58: J06D02AS1 | E58: 192 | F58: 20 | U58: 成品 | V58: 0.75 | W58: 15
A59: 2026-03-13 | B59: 2026-03-16 | C59: 顺优 | D59: 242104J3100LB3-HMP-KB | E59: 1148 | F59: 80 | U59: 外套 | V59: 0.5 | W59: 40
A60: 2026-03-13 | B60: 2026-03-16 | C60: 顺优 | D60: 242104J3100LB3-HMP-ZD | E60: 1066 | F60: 80 | U60: 外套 | V60: 0.5 | W60: 40
A61: 2026-03-13 | B61: 2026-03-16 | C61: 顺优 | D61: 242104J3100LS9-HMP-KB | E61: 492 | F61: 50 | U61: 外套 | V61: 0.5 | W61: 25
A62: 2026-03-13 | B62: 2026-03-16 | C62: 顺优 | D62: 242104J3100LS9-HMP-ZD | E62: 574 | F62: 50 | U62: 外套 | V62: 0.5 | W62: 25
A63: 2026-03-13 | B63: 2026-03-16 | C63: 顺优 | D63: 242103J3100LB1-HMP-KB | E63: 500 | F63: 50 | U63: 外套 | V63: 0.5 | W63: 25
A64: 2026-03-13 | B64: 2026-03-16 | C64: 顺优 | D64: 242103J3100LB1-HMP-ZD | E64: 500 | F64: 50 | U64: 外套 | V64: 0.5 | W64: 25
A65: 2026-03-14 | B65: 2026-03-16 | C65: 顺优 | D65: 242104J3100LS9-SLJ-KB | E65: 1500 | F65: 120 | U65: 裸心 | V65: 0.25 | W65: 30
A66: 2026-03-14 | B66: 2026-03-16 | C66: 顺优 | D66: 242104J3100LS9-SLJ-ZD | E66: 1500 | F66: 105 | U66: 裸心 | V66: 0.25 | W66: 26.25
A67: 2026-03-14 | B67: 2026-03-16 | C67: 逸科斯 | D67: J13B26AW2NX | E67: 1300 | F67: 120 | J67: 2 | N67: 3 | Q67: 5 | S67: 污渍3，撕裂2 | U67: 裸心 | V67: 0.25 | W67: 30
A68: 2026-03-16 | B68: 2026-03-17 | C68: 智善 | D68: 210703J1500GS1-WT | E68: 400 | F68: 50 | U68: 外套 | V68: 0.5 | W68: =F68*V68 -> 25
A69: 2026-03-16 | B69: 2026-03-17 | C69: 智善 | D69: 210703J1500GB3-WT | E69: 496 | F69: 50 | U69: 外套 | V69: 0.5 | W69: 25
A70: 2026-03-16 | B70: 2026-03-17 | C70: 智善 | D70: J08B06AS1-WT | E70: 800 | F70: 80 | U70: 外套 | V70: 0.5 | W70: 40
A71: 2026-03-16 | B71: 2026-03-17 | C71: 智善 | D71: 214002J0117MS1-WT | E71: 100 | F71: 10 | U71: 外套 | V71: 0.5 | W71: 5
A72: 2026-03-16 | B72: 2026-03-17 | C72: 逸康 | D72: 232408J0100MY3 | E72: 80 | F72: 10 | N72: 1 | Q72: 1 | S72: 污渍1 | U72: 成品 | V72: 0.75 | W72: 7.5
A73: 2026-03-16 | B73: 2026-03-17 | C73: 逸康 | D73: 242402J0100MB6 | E73: 80 | F73: 10 | U73: 成品 | V73: 0.75 | W73: 7.5
A74: 2026-03-16 | B74: 2026-03-17 | C74: 逸康 | D74: J24A15AR6 | E74: 200 | F74: 20 | U74: 成品 | V74: 0.75 | W74: 15
A75: 2026-03-16 | B75: 2026-03-17 | C75: 逸康 | D75: 232407J0100MB3-LX | E75: 216 | F75: 20 | U75: 裸心 | V75: 0.25 | W75: 5
A76: 2026-03-18 | B76: 2026-03-18 | C76: 爱德福 | D76: J17B06AS9-NX | E76: 1000 | F76: 100 | K76: 1 | N76: 1 | Q76: 2 | S76: 污渍1，勾纱1 | U76: 裸心 | V76: 0.25 | W76: 25
A77: 2026-03-18 | B77: 2026-03-18 | C77: 奇思 | D77: 250801J0100MS9 | E77: 40 | F77: 6 | K77: 1 | L77: 1 | N77: 4 | R77: 40 | S77: 污渍4，开线1，针孔大1，标识百分比符号错误 | U77: 压缩 | V77: 0.8 | W77: 4.8
A78: 2026-03-18 | B78: 2026-03-18 | C78: 奇思 | D78: 250801J0100MB5 | E78: 104 | F78: 10 | L78: 1 | N78: 3 | R78: 104 | S78: 污渍3，破洞1，长线头未处理2，标识百分比符号错误 | U78: 压缩 | V78: 0.8 | W78: 8
A79: 2026-03-19 | B79: 2026-03-19 | C79: 顺优 | D79: 242104J3100LB3-HMP-KB | E79: 82 | F79: 10 | U79: 外套 | V79: 0.5 | W79: 5
A80: 2026-03-19 | B80: 2026-03-19 | C80: 顺优 | D80: 242104J3100LB3-HMP-ZD | E80: 82 | F80: 10 | U80: 外套 | V80: 0.5 | W80: 5
A81: 2026-03-19 | B81: 2026-03-19 | C81: 顺优 | D81: 242104J3100LS9-HMP-KB | E81: 82 | F81: 10 | U81: 外套 | V81: 0.5 | W81: 5
A82: 2026-03-19 | B82: 2026-03-19 | C82: 顺优 | D82: 252108J3100XLB3-HMP-KB | E82: 600 | F82: 60 | U82: 外套 | V82: 0.5 | W82: 30
A83: 2026-03-19 | B83: 2026-03-19 | C83: 顺优 | D83: 252108J3100XLB3-HMP-ZD | E83: 600 | F83: 60 | U83: 外套 | V83: 0.5 | W83: 30
A84: 2026-03-19 | B84: 2026-03-19 | C84: 顺优 | D84: J62D01QB1 | E84: 299 | F84: 35 | U84: 成品 | V84: 0.75 | W84: 26.25
A85: 2026-03-19 | B85: 2026-03-19 | C85: 顺优 | D85: 252108J3100XLB1-SLJ-KB | E85: 600 | F85: 50 | U85: 裸心 | V85: 0.25 | W85: 12.5
A86: 2026-03-19 | B86: 2026-03-19 | C86: 顺优 | D86: 252108J3100XLB1-SLJ-ZD | E86: 600 | F86: 50 | U86: 裸心 | V86: 0.25 | W86: 12.5
A87: 2026-03-19 | B87: 2026-03-20 | C87: 泓全 | D87: J26C06ZS1 | E87: 220 | F87: 20 | U87: 成品 | V87: 0.75 | W87: 15
A88: 2026-03-19 | B88: 2026-03-20 | C88: 泓全 | D88: J13B09W2 | E88: 411 | F88: 40 | U88: 外套 | V88: 0.5 | W88: 20
A89: 2026-03-19 | B89: 2026-03-20 | C89: 泓全 | D89: J17B14AR4-WT | E89: 345 | F89: 40 | U89: 外套 | V89: 0.5 | W89: 20
A90: 2026-03-19 | B90: 2026-03-20 | C90: 泓全 | D90: J17B12AR4-WT | E90: 300 | F90: 35 | U90: 外套 | V90: 0.5 | W90: 17.5
A91: 2026-03-19 | B91: 2026-03-20 | C91: 顾舒家华 | D91: J06D06AB7 | E91: 800 | F91: 80 | U91: 成品 | V91: 0.75 | W91: 60
A92: 2026-03-19 | B92: 2026-03-20 | C92: 顾舒家华 | D92: 240604J0100MB3 | E92: 204 | F92: 24 | U92: 成品 | V92: 0.75 | W92: 18
A93: 2026-03-19 | B93: 2026-03-20 | C93: 顾舒家华 | D93: J06A14BS1 | E93: 300 | F93: 30 | U93: 成品 | V93: 0.75 | W93: 22.5
A94: 2026-03-21 | B94: 2026-03-21 | C94: 逸科斯 | D94: J13B26AW2NX | E94: 1700 | F94: 120 | N94: 1 | Q94: 1 | S94: 头发1 | U94: 裸心 | V94: 0.25 | W94: 30
A95: 2026-03-22 | B95: 2026-03-23 | C95: 智善 | D95: 220702J1511GS1-WT | E95: 144 | F95: 25 | U95: 外套 | V95: 0.5 | W95: 12.5
A96: 2026-03-22 | B96: 2026-03-23 | C96: 智善 | D96: J08B06AS1WT | E96: 1318 | F96: 100 | U96: 外套 | V96: 0.5 | W96: 50
A97: 2026-03-22 | B97: 2026-03-23 | C97: 智善 | D97: 240705J1501MS9-WT | E97: 180 | F97: 25 | U97: 外套 | V97: 0.5 | W97: 12.5
A98: 2026-03-22 | B98: 2026-03-23 | C98: 奋力 | D98: 254001J1700SB5 | E98: 400 | F98: 40 | S98: 魔术贴处工艺有变动，待确认 | U98: 盒装 | V98: 1 | W98: 40
A99: 2026-03-23 | B99: 2026-03-23 | C99: 鸿业 | D99: 214002J0117MS1-LX | E99: 500 | F99: 50 | J99: 1 | N99: 2 | Q99: 3 | S99: 污渍2，缺块1 | U99: 裸心 | V99: 0.25 | W99: 12.5
A100: 2026-03-23 | B100: 2026-03-23 | C100: 顺优 | D100: 190602J0108MG1 | E100: 196 | F100: 21 | U100: 成品 | V100: 0.75 | W100: 15.75
A101: 2026-03-23 | B101: 2026-03-23 | C101: 顺优 | D101: 190602J0121M1B1 | E101: 100 | F101: 14 | U101: 成品 | V101: 0.75 | W101: 10.5
A102: 2026-03-23 | B102: 2026-03-23 | C102: 顺优 | D102: 230601J0100MB1 | E102: 300 | F102: 28 | U102: 成品 | V102: 0.75 | W102: 21
A103: 2026-03-23 | B103: 2026-03-23 | C103: 顺优 | D103: 190602J0108MB7 | E103: 105 | F103: 14 | U103: 成品 | V103: 0.75 | W103: 10.5
A104: 2026-03-24 | B104: 2026-03-24 | C104: 华睿 | D104: 240104J0100MW2 | E104: 105 | F104: 14 | U104: 成品 | V104: 0.75 | W104: 10.5
A105: 2026-03-24 | B105: 2026-03-24 | C105: 华睿 | D105: J06D01BS1-NX | E105: 300 | F105: 30 | U105: 裸心 | V105: 0.25 | W105: 7.5
A106: 2026-03-24 | B106: 2026-03-24 | C106: 华睿 | D106: J06D01AB7 | E106: 300 | F106: 30 | U106: 成品 | V106: 0.75 | W106: 22.5
A107: 2026-03-24 | B107: 2026-03-24 | C107: 华睿 | D107: J07B02B | E107: 300 | F107: 36 | U107: 裸心 | V107: 0.25 | W107: 9
A108: 2026-03-26 | B108: 2026-03-26 | C108: 顺优 | D108: 242103J3100LB6HMP-KB | E108: 1502 | F108: 120 | U108: 外套 | V108: 0.5 | W108: 60
A109: 2026-03-26 | B109: 2026-03-26 | C109: 顺优 | D109: 242103J3100LB6HMP-ZD | E109: 1502 | F109: 120 | U109: 外套 | V109: 0.5 | W109: 60
A110: 2026-03-26 | B110: 2026-03-26 | C110: 顺优 | D110: 242103J3100LB1HMP-KB | E110: 536 | F110: 50 | U110: 外套 | V110: 0.5 | W110: 25
A111: 2026-03-26 | B111: 2026-03-26 | C111: 顺优 | D111: 242103J3100LB1HMP-ZD | E111: 536 | F111: 50 | U111: 外套 | V111: 0.5 | W111: 25
A112: 2026-03-26 | B112: 2026-03-27 | C112: 华睿 | D112: J06D01BS1-NX | E112: 120 | F112: 20 | U112: 裸心 | V112: 0.25 | W112: 5
A113: 2026-03-26 | B113: 2026-03-27 | C113: 华睿 | D113: J07B08AS1 | E113: 1056 | F113: 96 | P113: 1 | Q113: 1 | S113: 无洗标1 | U113: 成品 | V113: 0.75 | W113: 72
A114: 2026-03-26 | B114: 2026-03-27 | C114: 伊德 | D114: 242406J0100MB3 | E114: 500 | F114: 28 | R114: 500 | S114: 气味重，气钉发硬，突出明显5，破损1，装配不到位5 非本公司标识 | U114: 盒装 | V114: 1 | W114: 28
A115: 2026-03-26 | B115: 2026-03-27 | C115: 顺优 | D115: 252108J3100XLB3-HMP-KB | E115: 413 | F115: 40 | U115: 外套 | V115: 0.5 | W115: 20
A116: 2026-03-26 | B116: 2026-03-27 | C116: 顺优 | D116: 252108J3100XLB3-HMP-ZD | E116: 413 | F116: 40 | U116: 外套 | V116: 0.5 | W116: 20
A117: 2026-03-26 | B117: 2026-03-27 | C117: 顺优 | D117: 252108J3100XLP1-HMP-KB | E117: 326 | F117: 35 | U117: 外套 | V117: 0.5 | W117: 17.5
A118: 2026-03-26 | B118: 2026-03-27 | C118: 顺优 | D118: 252108J3100XLP1-HMP-ZD | E118: 326 | F118: 35 | U118: 外套 | V118: 0.5 | W118: 17.5
A119: 2026-03-26 | B119: 2026-03-27 | C119: 顺优 | D119: 252108J3100XLS9-HMP-KB | E119: 603 | F119: 60 | U119: 外套 | V119: 0.5 | W119: 30
A120: 2026-03-26 | B120: 2026-03-27 | C120: 顺优 | D120: 252108J3100XLS9-HMP-ZD | E120: 603 | F120: 60 | U120: 外套 | V120: 0.5 | W120: 30
A121: 2026-03-26 | B121: 2026-03-27 | C121: 顺优 | D121: 252103J3100XLB3-HMP-KB | E121: 503 | F121: 50 | U121: 外套 | V121: 0.5 | W121: 25
A122: 2026-03-26 | B122: 2026-03-27 | C122: 顺优 | D122: 252103J3100XLB3-HMP-ZD | E122: 503 | F122: 50 | U122: 外套 | V122: 0.5 | W122: 25
A123: 2026-03-27 | B123: 2026-03-28 | C123: 顾舒家华 | D123: J06D06AB7-NX | E123: 210 | F123: 20 | U123: 裸心 | V123: 0.25 | W123: 5
A124: 2026-03-27 | B124: 2026-03-28 | C124: 顾舒家华 | D124: 240609J0100MB6 | E124: 204 | F124: 24 | L124: 1 | Q124: 1 | S124: 错缝1 | U124: 成品 | V124: 0.75 | W124: 18
A125: 2026-03-27 | B125: 2026-03-28 | C125: 顾舒家华 | D125: J06A14BS1 | E125: 480 | F125: 50 | U125: 成品 | V125: 0.75 | W125: 37.5
A126: 2026-03-27 | B126: 2026-03-28 | C126: 顾舒家华 | D126: 230608J0115MB6 | E126: 300 | F126: 30 | U126: 成品 | V126: 0.75 | W126: 22.5
A127: 2026-03-27 | B127: 2026-03-28 | C127: 爱德福 | D127: J17B07AS9NX | E127: 500 | F127: 60 | U127: 裸心 | V127: 0.25 | W127: 15
A128: 2026-03-27 | B128: 2026-03-28 | C128: 逸康 | D128: 192001J0117MW2 | E128: 180 | F128: 20 | U128: 成品 | V128: 0.75 | W128: =F128*V132 -> 15
A129: 2026-03-27 | B129: 2026-03-28 | C129: 逸康 | D129: 232408J0100MB3 | E129: 200 | F129: 20 | U129: 成品 | V129: 0.75 | W129: =F129*V129 -> 15
A130: 2026-03-27 | B130: 2026-03-28 | C130: 逸康 | D130: J24A15AS1 | E130: 320 | F130: 40 | U130: 成品 | V130: 0.75 | W130: 30
A131: 2026-03-27 | B131: 2026-03-28 | C131: 逸康 | D131: 242402J0100MB6 | E131: 200 | F131: 20 | U131: 成品 | V131: 0.75 | W131: 15
A132: 2026-03-27 | B132: 2026-03-28 | C132: 逸康 | D132: J24A15AR6 | E132: 180 | F132: 20 | U132: 成品 | V132: 0.75 | W132: 15
A133: 2026-03-27 | B133: 2026-03-28 | C133: 逸康 | D133: 232407J0100MB3-LX | E133: 294 | F133: 30 | J133: 1 | Q133: 1 | S133: 撕裂1 | U133: 裸心 | V133: 0.25 | W133: 7.5
A134: 2026-03-26 | B134: 2026-03-29 | C134: 泓全 | D134: 240606J1501MS9-WT | E134: 360 | F134: 40 | N134: 1 | Q134: 1 | S134: 污渍1 | U134: 外套 | V134: 0.5 | W134: 20
A135: 2026-03-26 | B135: 2026-03-29 | C135: 泓全 | D135: J02A04CW2-WT | E135: 600 | F135: 20 | R135: 600 | S135: 试装外套大，不贴合7 | U135: 外套 | V135: 0.5 | W135: 10
A136: 2026-03-26 | B136: 2026-03-29 | C136: 泓全 | D136: J17B14AS9-WT | E136: 207 | F136: 25 | S136: 颜色偏浅 | U136: 外套 | V136: 0.5 | W136: 12.5
A137: 2026-03-26 | B137: 2026-03-29 | C137: 泓全 | D137: J17B12AR4-WT | E137: 191 | F137: 20 | U137: 外套 | V137: 0.5 | W137: 10
A138: 2026-03-26 | B138: 2026-03-29 | C138: 泓全 | D138: J17B14AR4-WT | E138: 298 | F138: 35 | U138: 外套 | V138: 0.5 | W138: 17.5
A139: 2026-03-26 | B139: 2026-03-29 | C139: 泓全 | D139: 240108J0100LP1-WT | E139: 187 | F139: 20 | R139: 187 | S139: 抽丝4 | U139: 外套 | V139: 0.5 | W139: 10
A140: 2026-03-26 | B140: 2026-03-29 | C140: 泓全 | D140: J26C06ZS1 | E140: 198 | F140: 15 | U140: 成品 | V140: 0.75 | W140: 11.25
A141: 2026-03-26 | B141: 2026-03-29 | C141: 泓全 | D141: J06D01AS1 | E141: 434 | F141: 42 | U141: 成品 | V141: 0.75 | W141: 31.5
A142: 2026-03-26 | B142: 2026-03-29 | C142: 泓全 | D142: J17B12AS9-WT | E142: 555 | F142: 50 | U142: 外套 | V142: 0.5 | W142: 25
A143: 2026-03-28 | B143: 2026-03-30 | C143: 顺优 | D143: 252108J3100XLB3-HMP-KB | E143: 413 | F143: 40 | U143: 外套 | V143: 0.5 | W143: 20
A144: 2026-03-28 | B144: 2026-03-30 | C144: 顺优 | D144: 252108J3100XLB3-HMP-ZD | E144: 413 | F144: 40 | U144: 外套 | V144: 0.5 | W144: 20
A145: 2026-03-28 | B145: 2026-03-30 | C145: 顺优 | D145: 252108J3100XLP1-HMP-KB | E145: 326 | F145: 35 | U145: 外套 | V145: 0.5 | W145: 17.5
A146: 2026-03-28 | B146: 2026-03-30 | C146: 顺优 | D146: 252108J3100XLP1-HMP-ZD | E146: 326 | F146: 35 | U146: 外套 | V146: 0.5 | W146: 17.5
A147: 2026-03-28 | B147: 2026-03-30 | C147: 顺优 | D147: 252108J3100XLS9-HMP-KB | E147: 603 | F147: 60 | U147: 外套 | V147: 0.5 | W147: 30
A148: 2026-03-28 | B148: 2026-03-30 | C148: 顺优 | D148: 252108J3100XLS9-HMP-ZD | E148: 603 | F148: 60 | U148: 外套 | V148: 0.5 | W148: 30
A149: 2026-03-28 | B149: 2026-03-30 | C149: 顺优 | D149: 252103J3100XLB3-HMP-KB | E149: 503 | F149: 50 | U149: 外套 | V149: 0.5 | W149: 25
A150: 2026-03-28 | B150: 2026-03-30 | C150: 顺优 | D150: 252103J3100XLB3-HMP-ZD | E150: 503 | F150: 50 | U150: 外套 | V150: 0.5 | W150: 25
A151: 2026-03-28 | B151: 2026-03-30 | C151: 顺优 | D151: 252108J3100XLB1-SLJ-KB | E151: 1845 | F151: 120 | U151: 裸心 | V151: 0.25 | W151: 30
A152: 2026-03-28 | B152: 2026-03-30 | C152: 顺优 | D152: 252108J3100XLB1-SLJ-ZD | E152: 1845 | F152: 120 | U152: 裸心 | V152: 0.25 | W152: 30
A153: 2026-03-28 | B153: 2026-03-30 | C153: 顺优 | D153: 242104J3100LB3-SLJ-KB | E153: 1220 | F153: 120 | U153: 裸心 | V153: 0.25 | W153: 30
A154: 2026-03-28 | B154: 2026-03-30 | C154: 顺优 | D154: 242104J3100LB3-SLJ-ZD | E154: 1220 | F154: 120 | U154: 裸心 | V154: 0.25 | W154: 30
A155: 2026-03-28 | B155: 2026-03-31 | C155: 顺优 | D155: 242104J3100LB3-HMP-KB | E155: 600 | F155: 60 | U155: 外套 | V155: 0.5 | W155: 30
A156: 2026-03-28 | B156: 2026-03-31 | C156: 顺优 | D156: 242104J3100LB3-HMP-ZD | E156: 600 | F156: 60 | R156: 600 | S156: 边缘瑕疵 | U156: 外套 | V156: 0.5 | W156: 30
A157: 2026-03-28 | B157: 2026-03-31 | C157: 顺优 | D157: 242104J3100LB1-HMP-KB | E157: 80 | F157: 10 | U157: 外套 | V157: 0.5 | W157: 5
A158: 2026-03-28 | B158: 2026-03-31 | C158: 顺优 | D158: 242104J3100LB1-HMP-ZD | E158: 80 | F158: 10 | U158: 外套 | V158: 0.5 | W158: 5
A159: 2026-03-28 | B159: 2026-03-31 | C159: 顺优 | D159: 242104J3100LS9-HMP-KB | E159: 328 | F159: 30 | U159: 外套 | V159: 0.5 | W159: 15
A160: 2026-03-28 | B160: 2026-03-31 | C160: 顺优 | D160: 242104J3100LS9-HMP-ZD | E160: 328 | F160: 30 | U160: 外套 | V160: 0.5 | W160: 15
A161: 2026-03-29 | B161: 2026-03-31 | C161: 金凯迪 | D161: J06D01AS1 | E161: 10 | F161: 10 | U161: 成品 | V161: 0.75 | W161: 7.5
A162: 2026-03-29 | B162: 2026-03-31 | C162: 金凯迪 | D162: 240108J0100LS9-NX | E162: 416 | F162: 40 | U162: 裸心 | V162: 0.25 | W162: 10
A163: 2026-03-29 | B163: 2026-03-31 | C163: 佳雷 | D163: 252107J0100LB10 | E163: 140 | F163: 14 | L163: 1 | Q163: 1 | S163: 漏缝1，气味重 | U163: 压缩 | V163: 0.8 | W163: 11.2
A164: 2026-03-29 | B164: 2026-03-31 | C164: 佳雷 | D164: 252107J0100LG11 | E164: 80 | F164: 10 | S164: 气味重 | U164: 压缩 | V164: 0.8 | W164: 8
A165: 2026-03-29 | B165: 2026-03-31 | C165: 华睿 | D165: J06D01AB7 | E165: 90 | F165: 10 | U165: 成品 | V165: 0.75 | W165: 7.5
A166: 2026-03-29 | B166: 2026-03-31 | C166: 华睿 | D166: J07B08BS1 | E166: 396 | F166: 48 | U166: 成品 | V166: 0.75 | W166: 36
A167: 2026-03-29 | B167: 2026-03-31 | C167: 华睿 | D167: J07B08BB7 | E167: 300 | F167: 36 | L167: 1 | Q167: 1 | S167: 漏缝1 | U167: 成品 | V167: 0.75 | W167: 27
A168: 2026-03-29 | B168: 2026-03-31 | C168: 华睿 | D168: 220604J0100MB2-NX | E168: 408 | F168: 48 | N168: 3 | Q168: 3 | S168: 污渍3 | U168: 裸心 | V168: 0.25 | W168: 12
A169: 2026-03-31 | B169: 2026-03-31 | C169: 顺优 | D169: 190602J0800MB1 | E169: 371 | F169: 35 | U169: 成品 | V169: 0.75 | W169: 26.25
A170: 2026-03-31 | B170: 2026-03-31 | C170: 顺优 | D170: 230610J0108MB6 | E170: 100 | F170: 14 | U170: 成品 | V170: 0.75 | W170: 10.5
A171: 2026-03-31 | B171: 2026-03-31 | C171: 顺优 | D171: 230601J0100MB1 | E171: 258 | F171: 28 | U171: 成品 | V171: 0.75 | W171: 21
A172: 2026-03-31 | B172: 2026-03-31 | C172: 顺优 | D172: 190602J0121M1B1 | E172: 100 | F172: 14 | U172: 成品 | V172: 0.75 | W172: 10.5
W173: 0
W174: 0
W175: 0
W176: 0
W177: 0
W178: 0
W179: 0
W180: 0
W181: 0
W182: 0
W183: 0
W184: 0
W185: 0
W186: 0
W187: 0
W188: 0
W189: 0
W190: 0
W191: 0
W192: 0
W193: =F193*V193 -> 0
W194: 0
W195: 0
W196: 0
W197: 0
W198: 0
W199: 0
W200: 0
... 15 more rows

Sheet 2月
A1: 来货日期 | B1: 验货日期 | C1: 供应商 | D1: 商品编码 | E1: 来货数量 | F1: 抽检/个数 | G1: 手感 | H1: 气味 | I1: 克重 | J1: 内芯 | K1: 布料 | L1: 缝制 | M1: 拉链 | N1: 卫生 | O1: 条码 | P1: 洗水标 | Q1: 不合格/个 | R1: 大批次品 | S1: 问题描述 | T1: 检验员 | U1: 品类 | V1: 单价 | W1: 总价 | X1: 克重
A2: 2026-01-30 | B2: 2026-02-01 | C2: 智善 | D2: J06A20AB7-WT | E2: 100 | F2: 12 | U2: 外套 | V2: 0.5 | W2: =F2*V2 -> 6
A3: 2026-01-31 | B3: 2026-02-01 | C3: 佳盛 | D3: J13B01A | E3: 510 | F3: 45 | U3: 内心 | V3: 0.25 | W3: 11.25
A4: 2026-01-31 | B4: 2026-02-01 | C4: 佳盛 | D4: 250106J0200MB3-NX | E4: 80 | F4: 10 | N4: 1 | Q4: 1 | S4: 污渍1 | U4: 内心 | V4: 0.25 | W4: 2.5
A5: 2026-01-31 | B5: 2026-02-01 | C5: 佳盛 | D5: 210104J0200MW2 | E5: 525 | F5: 50 | L5: 1 | M5: 1 | Q5: 2 | S5: 拉链坏1，破损1 | U5: 成品 | V5: 0.75 | W5: 37.5
A6: 2026-01-31 | B6: 2026-02-01 | C6: 顺优 | D6: 242104J3100LS9-HMPKB | E6: 328 | F6: 30 | U6: 外套 | V6: 0.5 | W6: 15
A7: 2026-01-31 | B7: 2026-02-01 | C7: 顺优 | D7: 242104J3100LS9-HMPZD | E7: 328 | F7: 30 | U7: 外套 | V7: 0.5 | W7: 15
A8: 2026-01-31 | B8: 2026-02-01 | C8: 顺优 | D8: 242104J3100LB3-HMPKB | E8: 738 | F8: 70 | U8: 外套 | V8: 0.5 | W8: 35
A9: 2026-01-31 | B9: 2026-02-01 | C9: 顺优 | D9: 242104J3100LB3-HMPZD | E9: 738 | F9: 70 | U9: 外套 | V9: 0.5 | W9: 35
A10: 2026-02-02 | B10: 2026-02-02 | C10: 逸科斯 | D10: J13B26AW2NX | E10: 2000 | F10: 150 | U10: 内心 | V10: 0.25 | W10: 37.5
A11: 2026-02-02 | B11: 2026-02-02 | C11: 顾舒家华 | D11: J06A14BS1 | E11: 300 | F11: 30 | U11: 成品 | V11: 0.75 | W11: 22.5
A12: 2026-02-02 | B12: 2026-02-02 | C12: 顾舒家华 | D12: J06D06AB7 | E12: 304 | F12: 32 | U12: 成品 | V12: 0.75 | W12: 24
A13: 2026-02-02 | B13: 2026-02-02 | C13: 顾舒家华 | D13: J06A14BB7 | E13: 100 | F13: 10 | U13: 成品 | V13: 0.75 | W13: 7.5
A14: 2026-02-02 | B14: 2026-02-02 | C14: 顾舒家华 | D14: 220606J0100MR4 | E14: 200 | F14: 30 | L14: 1 | Q14: 2 | S14: 开线1，压痕1 | U14: 成品 | V14: 0.75 | W14: 22.5
A15: 2026-02-02 | B15: 2026-02-02 | C15: 顾舒家华 | D15: 220606J0100MS9 | E15: 200 | F15: 20 | U15: 成品 | V15: 0.75 | W15: 15
A16: 2026-02-02 | B16: 2026-02-02 | C16: 顾舒家华 | D16: 230608J0115MB6 | E16: 100 | F16: 10 | U16: 成品 | V16: 0.75 | W16: 7.5
A17: 2026-02-02 | B17: 2026-02-02 | C17: 顾舒家华 | D17: 240701J0100MB1 | E17: 112 | F17: 16 | U17: 成品 | V17: 0.75 | W17: 12
A18: 2026-02-02 | B18: 2026-02-02 | C18: 顾舒家华 | D18: 231302J0100MB6 | E18: 88 | F18: 15 | U18: 成品 | V18: 0.75 | W18: 11.25
A19: 2026-02-02 | B19: 2026-02-02 | C19: 顾舒家华 | D19: 231202J0100MB6 | E19: 100 | F19: 20 | U19: 成品 | V19: 0.75 | W19: 15
A20: 2026-02-02 | B20: 2026-02-02 | C20: 佳雷 | D20: 252107J0100LB10 | E20: 150 | F20: 10 | U20: 压缩 | V20: 0.8 | W20: 8
A21: 2026-02-02 | B21: 2026-02-02 | C21: 佳雷 | D21: 252107J0100LG11 | E21: 50 | F21: 5 | U21: 压缩 | V21: 0.8 | W21: 4
A22: 2026-02-04 | B22: 2026-02-04 | C22: 合嘉欢 | D22: 260101J0100LS6 | E22: 500 | F22: 25 | K22: 1 | Q22: 1 | S22: 布次1 | U22: 压缩 | V22: 0.8 | W22: 20
A23: 2026-02-04 | B23: 2026-02-04 | C23: 华睿 | D23: J06D01AB7 | E23: 200 | F23: 20 | U23: 成品 | V23: 0.75 | W23: 15
A24: 2026-02-04 | B24: 2026-02-04 | C24: 华睿 | D24: J07B08AB7 | E24: 192 | F24: 32 | U24: 成品 | V24: 0.75 | W24: 24
A25: 2026-02-04 | B25: 2026-02-04 | C25: 华睿 | D25: J07B02B | E25: 120 | F25: 10 | U25: 内心 | V25: 0.25 | W25: 2.5
A26: 2026-02-04 | B26: 2026-02-04 | C26: 华睿 | D26: J02B05AW2LX | E26: 324 | F26: 35 | U26: 内心 | V26: 0.25 | W26: 8.75
A27: 2026-02-04 | B27: 2026-02-04 | C27: 华睿 | D27: 252103J3100XLB3-SLJZD | E27: 300 | F27: 30 | R27: 300 | S27: 污渍，无内袋，部分表面粘有残渣、污渍 | U27: 内心 | V27: 0.25 | W27: 7.5
A28: 2026-02-04 | B28: 2026-02-04 | C28: 华睿 | D28: 252103J3100XLB3-SLJKB | E28: 300 | F28: 30 | U28: 内心 | V28: 0.25 | W28: 7.5
A29: 2026-02-04 | B29: 2026-02-04 | C29: 华睿 | D29: 252103J3100XLB3-HMPZD | E29: 300 | F29: 30 | R29: 300 | S29: 有毛边、有条纹，污渍4 | U29: 外套 | V29: 0.5 | W29: 15
A30: 2026-02-04 | B30: 2026-02-04 | C30: 华睿 | D30: 252103J3100XLB3-HMPKB | E30: 300 | F30: 30 | R30: 300 | S30: 压痕变形7 | U30: 外套 | V30: 0.5 | W30: 15
A31: 2026-02-04 | B31: 2026-02-04 | C31: 泓全 | D31: 240606J1501MS9 | E31: 109 | F31: 16 | U31: 成品 | V31: 0.75 | W31: 12
A32: 2026-02-04 | B32: 2026-02-04 | C32: 泓全 | D32: 240606J1501MS9-WT | E32: 126 | F32: 20 | U32: 外套 | V32: 0.5 | W32: 10
A33: 2026-02-04 | B33: 2026-02-04 | C33: 泓全 | D33: J17B12AR4-WT | E33: 240 | F33: 30 | U33: 外套 | V33: 0.5 | W33: 15
A34: 2026-02-04 | B34: 2026-02-04 | C34: 泓全 | D34: J02A07AW2-WT | E34: 581 | F34: 50 | U34: 外套 | V34: 0.5 | W34: 25
A35: 2026-02-04 | B35: 2026-02-04 | C35: 泓全 | D35: 232407J0100MB3-WT | E35: 137 | F35: 20 | U35: 外套 | V35: 0.5 | W35: 10
A36: 2026-02-04 | B36: 2026-02-04 | C36: 泓全 | D36: 240606J1500MY1-WT | E36: 169 | F36: 25 | U36: 外套 | V36: 0.5 | W36: 12.5
A37: 2026-02-04 | B37: 2026-02-04 | C37: 泓全 | D37: 240102J0138LS17 | E37: 101 | F37: 10 | Q37: 1 | S37: 布次1 | U37: 压缩 | V37: 0.8 | W37: 8
A38: 2026-02-04 | B38: 2026-02-04 | C38: 泓全 | D38: J06D01AB7 | E38: 138 | F38: 20 | U38: 成品 | V38: 0.75 | W38: 15
A39: 2026-02-04 | B39: 2026-02-04 | C39: 顺优 | D39: 242105J3100LB4-01 | E39: 825 | F39: 90 | Q39: 1 | S39: 磨损1 | U39: 成品 | V39: 0.75 | W39: 67.5
A40: 2026-02-04 | B40: 2026-02-04 | C40: 顺优 | D40: 242103J3100LB6-SLJKB | E40: 840 | F40: 60 | U40: 内心 | V40: 0.25 | W40: 15
A41: 2026-02-04 | B41: 2026-02-04 | C41: 顺优 | D41: 242103J3100LB6-SLJZD | E41: 840 | F41: 60 | S41: 表面有余料残渣 | U41: 内心 | V41: 0.25 | W41: 15
A42: 2026-02-05 | B42: 2026-02-05 | C42: 高裕 | D42: J08B07BS1-LX | E42: 396 | F42: 36 | U42: 内心 | V42: 0.25 | W42: 9
A43: 2026-02-05 | B43: 2026-02-05 | C43: 高裕 | D43: J02A04AW2 | E43: 292 | F43: 32 | L43: 1 | Q43: 1 | S43: 开线1 | U43: 成品 | V43: 0.75 | W43: 24
A44: 2026-02-05 | B44: 2026-02-05 | C44: 高裕 | D44: J02A07AW2NX | E44: 500 | F44: 60 | U44: 内心 | V44: 0.25 | W44: 15
A45: 2026-02-05 | B45: 2026-02-05 | C45: 高裕 | D45: J02A07CW2NX | E45: 200 | F45: 20 | U45: 内心 | V45: 0.25 | W45: 5
A46: 2026-02-05 | B46: 2026-02-05 | C46: 高裕 | D46: 210801J0100MB7 | E46: 200 | F46: 12 | U46: 压缩 | V46: 0.8 | W46: 9.6
A47: 2026-02-05 | B47: 2026-02-05 | C47: 高裕 | D47: 210801J0100SB7 | E47: 324 | F47: 10 | U47: 压缩 | V47: 0.8 | W47: 8
A48: 2026-02-05 | B48: 2026-02-05 | C48: 高裕 | D48: J06A14BS1 | E48: 10 | F48: 10 | U48: 成品 | V48: 0.75 | W48: 7.5
A49: 2026-02-05 | B49: 2026-02-05 | C49: 高裕 | D49: 240101J0100MW1 | E49: 800 | F49: 30 | U49: 压缩 | V49: 0.8 | W49: 24
A50: 2026-02-05 | B50: 2026-02-05 | C50: 高裕 | D50: 240701J1501MB1 | E50: 500 | F50: 72 | U50: 成品 | V50: 0.75 | W50: 54
A51: 2026-02-05 | B51: 2026-02-05 | C51: 顺优 | D51: J62D01QB1 | E51: 150 | F51: 21 | U51: 成品 | V51: 0.75 | W51: 15.75
A52: 2026-02-05 | B52: 2026-02-05 | C52: 顺优 | D52: 190602J0800MB1 | E52: 300 | F52: 28 | U52: 成品 | V52: 0.75 | W52: 21
A53: 2026-02-05 | B53: 2026-02-05 | C53: 顺优 | D53: 190602J0108MG1 | E53: 78 | F53: 14 | U53: 成品 | V53: 0.75 | W53: 10.5
A54: 2026-02-05 | B54: 2026-02-05 | C54: 顺优 | D54: 190602J0108M1R4 | E54: 79 | F54: 14 | U54: 成品 | V54: 0.75 | W54: 10.5
A55: 2026-02-06 | B55: 2026-02-06 | C55: 顾舒家华 | D55: 210123J0120MS9 | E55: 120 | F55: 10 | U55: 加热 | V55: 1 | W55: 10
A56: 2026-02-06 | B56: 2026-02-06 | C56: 大宸 | D56: 200801J0117MB7-WT | E56: 200 | F56: 30 | U56: 外套 | V56: 0.5 | W56: 15
A57: 2026-02-06 | B57: 2026-02-06 | C57: 奇思 | D57: 261401J0100LBS | E57: 100 | F57: 10 | U57: 压缩 | V57: 0.8 | W57: 8
A58: 2026-02-06 | B58: 2026-02-06 | C58: 奇思 | D58: 261401J0101LBS-WT | E58: 99 | F58: 10 | R58: 99 | S58: 试装不贴合，面料成分不一致 | U58: 外套 | V58: 0.5 | W58: 5
A59: 2026-02-06 | B59: 2026-02-06 | C59: 顺优 | D59: 242103J3100LB6-HMPKB | E59: 600 | F59: 50 | U59: 外套 | V59: 0.5 | W59: 25
A60: 2026-02-06 | B60: 2026-02-06 | C60: 顺优 | D60: 242103J3100LB6-HMPZD | E60: 600 | F60: 50 | U60: 外套 | V60: 0.5 | W60: 25
A61: 2026-02-06 | B61: 2026-02-06 | C61: 顺优 | D61: 242103J3100LB1-HMPKB | E61: 240 | F61: 30 | U61: 外套 | V61: 0.5 | W61: 15
A62: 2026-02-06 | B62: 2026-02-06 | C62: 顺优 | D62: 242103J3100LB1-HMPZD | E62: 240 | F62: 30 | U62: 外套 | V62: 0.5 | W62: 15
A63: 2026-02-08 | B63: 2026-02-08 | C63: 顺优 | D63: 242105J3100LB4-01 | E63: 230 | F63: 30 | U63: 成品 | V63: 0.75 | W63: 22.5
A64: 2026-02-28 | B64: 2026-02-28 | C64: 大宸 | D64: 200801J0117MB7-WT | E64: 303 | F64: 35 | U64: 外套 | V64: 0.5 | W64: 17.5
A65: 2026-03-05 | W65: 0
W66: =F66*V66 -> 0
W67: 0
W68: 0
W69: 0
W70: 0
W71: 0
W72: 0
W73: 0
W74: 0
W75: 0
W76: 0
W77: 0
W78: 0
W79: 0
W80: 0
W81: 0
W82: 0
W83: 0
W84: 0
W85: 0
W86: 0
W87: 0
W88: 0
W89: 0
W90: 0
W91: 0
W92: 0
W93: 0
W94: 0
W95: 0
W96: 0
W97: 0
W98: 0
W99: 0
W100: 0
W101: 0
W102: 0
W103: 0
W104: 0
W105: 0
W106: 0
W107: 0
W108: 0
W109: 0
W110: 0
W111: 0
W112: 0
W113: 0
W114: 0
W115: 0
W116: 0
W117: 0
W118: 0
W119: 0
W120: 0
W121: 0
W122: 0
W123: 0
W124: 0
W125: 0
W126: =F126*V130 -> 0
W127: =F127*V127 -> 0
W128: 0
W129: 0
W130: 0
W131: 0
W132: 0
W133: 0
W134: 0
W135: 0
W136: 0
W137: 0
W138: 0
W139: 0
W140: 0
W141: 0
W142: 0
W143: 0
W144: 0
W145: 0
W146: 0
W147: 0
W148: 0
W149: 0
W150: 0
W151: 0
W152: 0
W153: 0
W154: 0
W155: 0
W156: 0
W157: 0
W158: 0
W159: 0
W160: 0
W161: 0
W162: 0
W163: 0
W164: 0
W165: 0
W166: 0
W167: 0
W168: 0
W169: 0
W170: 0
W171: 0
W172: 0
W173: 0
W174: 0
W175: 0
W176: 0
W177: 0
W178: 0
W179: 0
W180: 0
W181: 0
W182: 0
W183: 0
W184: 0
W185: 0
W186: 0
W187: 0
W188: 0
W189: 0
W190: 0
W191: =F191*V191 -> 0
W192: 0
W193: 0
W194: 0
W195: 0
W196: 0
W197: 0
W198: 0
W199: 0
W200: 0
... 13 more rows

Sheet 1月
A1: 来货日期 | B1: 验货日期 | C1: 供应商 | D1: 商品编码 | E1: 来货数量 | F1: 抽检/个数 | G1: 手感 | H1: 气味 | I1: 克重 | J1: 内芯 | K1: 布料 | L1: 缝制 | M1: 拉链 | N1: 卫生 | O1: 条码 | P1: 洗水标 | Q1: 不合格/个 | R1: 大批次品 | S1: 问题描述 | T1: 检验员 | U1: 品类 | V1: 单价 | W1: 总价 | X1: 克重
A2: 2026-12-31 | B2: 2026-01-02 | C2: 顾舒家华 | D2: J06A14BS1 | E2: 330 | F2: 40 | U2: 成品 | V2: 0.75 | W2: =F2*V2 -> 30
A3: 2026-12-31 | B3: 2026-01-02 | C3: 顾舒家华 | D3: J06A14BB7 | E3: 200 | F3: 20 | N3: 1 | Q3: 1 | S3: 污渍1 | U3: 成品 | V3: 0.75 | W3: 15
A4: 2026-12-31 | B4: 2026-01-02 | C4: 顾舒家华 | D4: 220606J0100MR4 | E4: 100 | F4: 10 | R4: 100 | S4: 压痕明显 | U4: 成品 | V4: 0.75 | W4: 7.5
A5: 2026-12-31 | B5: 2026-01-02 | C5: 顾舒家华 | D5: 220606J0100MS9 | E5: 200 | F5: 20 | U5: 成品 | V5: 0.75 | W5: 15
A6: 2026-12-31 | B6: 2026-01-02 | C6: 顾舒家华 | D6: 231302J0100MB1 | E6: 100 | F6: 12 | U6: 成品 | V6: 0.75 | W6: 9
A7: 2026-12-31 | B7: 2026-01-02 | C7: 顾舒家华 | D7: 231202J0100MB1 | E7: 100 | F7: 12 | U7: 成品 | V7: 0.75 | W7: 9
A8: 2026-12-31 | B8: 2026-01-02 | C8: 顾舒家华 | D8: 231202J0100MB6 | E8: 100 | F8: 10 | U8: 成品 | V8: 0.75 | W8: 7.5
A9: 2026-12-31 | B9: 2026-01-02 | C9: 顾舒家华 | D9: 240701J0100MB3 | E9: 96 | F9: 10 | U9: 成品 | V9: 0.75 | W9: 7.5
A10: 1900-01-04 | B10: 2026-01-05 | C10: 泓全 | D10: J17B12AS9WT | E10: 121 | F10: 15 | U10: 外套 | V10: 0.5 | W10: 7.5
A11: 1900-01-04 | B11: 2026-01-05 | C11: 泓全 | D11: J26C06YS1 | E11: 210 | F11: 15 | N11: 1 | Q11: 1 | S11: 污渍1 | U11: 成品 | V11: 0.75 | W11: 11.25
A12: 1900-01-04 | B12: 2026-01-05 | C12: 泓全 | D12: J26C06ZS1 | E12: 220 | F12: 15 | L12: 1 | Q12: 1 | S12: 线迹不良1 | U12: 成品 | V12: 0.75 | W12: 11.25
A13: 1900-01-04 | B13: 2026-01-05 | C13: 泓全 | D13: J06D01AS1 | E13: 1113 | F13: 98 | L13: 1 | Q13: 1 | S13: 错缝1 | U13: 成品 | V13: 0.75 | W13: 73.5
A14: 1900-01-04 | B14: 2026-01-05 | C14: 泓全 | D14: J06D02AS1 | E14: 240 | F14: 26 | U14: 成品 | V14: 0.75 | W14: 19.5
A15: 1900-01-04 | B15: 2026-01-05 | C15: 泓全 | D15: J06D02AB7 | E15: 240 | F15: 26 | U15: 成品 | V15: 0.75 | W15: 19.5
A16: 1900-01-04 | B16: 2026-01-05 | C16: 泓全 | D16: 255201J1702MY4 | E16: 50 | F16: 6 | U16: 加热 | V16: 1 | W16: 6
A17: 2026-01-05 | B17: 2026-01-06 | C17: 顺优 | D17: 252102J3100LB4 | E17: 100 | F17: 15 | U17: 成品 | V17: 0.75 | W17: 11.25
A18: 2026-01-05 | B18: 2026-01-06 | C18: 顺优 | D18: 252103J3100LB6-SLJ | E18: 250 | F18: 25 | U18: 内心 | V18: 0.25 | W18: 6.25
A19: 2026-01-05 | B19: 2026-01-06 | C19: 顺优 | D19: 210604J0800MB1 | E19: 100 | F19: 14 | U19: 成品 | V19: 0.75 | W19: 10.5
A20: 2026-01-05 | B20: 2026-01-06 | C20: 顺优 | D20: 230602P0108MB3 | E20: 96 | F20: 14 | U20: 成品 | V20: 0.75 | W20: 10.5
A21: 2026-01-05 | B21: 2026-01-06 | C21: 顺优 | D21: J62D01QB1 | E21: 203 | F21: 21 | U21: 成品 | V21: 0.75 | W21: 15.75
A22: 2026-01-05 | B22: 2026-01-06 | C22: 顺优 | D22: 190602J0800MB1 | E22: 301 | F22: 28 | U22: 成品 | V22: 0.75 | W22: 21
A23: 2026-01-05 | B23: 2026-01-06 | C23: 顺优 | D23: 230610J0108MB6 | E23: 203 | F23: 21 | U23: 成品 | V23: 0.75 | W23: 15.75
A24: 2026-01-05 | B24: 2026-01-06 | C24: 顺优 | D24: 190602J0121M1B1 | E24: 100 | F24: 14 | U24: 成品 | V24: 0.75 | W24: 10.5
A25: 2026-01-05 | B25: 2026-01-06 | C25: 顺优 | D25: 230601J0100MB1 | E25: 319 | F25: 28 | U25: 成品 | V25: 0.75 | W25: 21
A26: 2026-01-05 | B26: 2026-01-06 | C26: 顺优 | D26: 190602J0108MG1 | E26: 100 | F26: 14 | U26: 成品 | V26: 0.75 | W26: 10.5
A27: 2026-01-05 | B27: 2026-01-06 | C27: 顺优 | D27: 242103J3100LB6-HMP | E27: 644 | F27: 50 | U27: 外套 | V27: 0.5 | W27: =F27*V27 -> 25
A28: 2026-01-05 | B28: 2026-01-06 | C28: 顺优 | D28: 242103J3100LB6-HMP | E28: 648 | F28: 50 | U28: 外套 | V28: 0.5 | W28: 25
A29: 2026-01-06 | B29: 2026-01-07 | C29: 智善 | D29: J06A20AS1-WT | E29: 217 | F29: 20 | U29: 外套 | V29: 0.5 | W29: 10
A30: 2026-01-06 | B30: 2026-01-07 | C30: 智善 | D30: 210703J1500GS1-WT | E30: 342 | F30: 35 | U30: 外套 | V30: 0.5 | W30: 17.5
A31: 2026-01-06 | B31: 2026-01-07 | C31: 智善 | D31: 240705J1501MS9-WT | E31: 441 | F31: 40 | U31: 外套 | V31: 0.5 | W31: 20
A32: 2026-01-06 | B32: 2026-01-07 | C32: 智善 | D32: 240705J1502MB2-WT | E32: 313 | F32: 30 | U32: 外套 | V32: 0.5 | W32: 15
A33: 2026-01-06 | B33: 2026-01-07 | C33: 智善 | D33: J06A14BS1-WT | E33: 300 | F33: 30 | U33: 外套 | V33: 0.5 | W33: 15
A34: 2026-01-06 | B34: 2026-01-07 | C34: 智善 | D34: 220802P2117MB5-WT | E34: 182 | F34: 20 | U34: 外套 | V34: 0.5 | W34: 10
A35: 2026-01-06 | B35: 2026-01-07 | C35: 顺优 | D35: 242103J3100LB6-SLJ | E35: 1292 | F35: 80 | U35: 内心 | V35: 0.25 | W35: 20
A36: 2026-01-07 | B36: 2026-01-07 | C36: 逸康 | D36: J24A15AS1 | E36: 40 | F36: 6 | U36: 成品 | V36: 0.75 | W36: 4.5
A37: 2026-01-07 | B37: 2026-01-07 | C37: 逸康 | D37: 262401J01XHZMS9 | E37: 80 | F37: 10 | R37: 80 | S37: 标识不一致 | U37: 成品 | V37: 0.75 | W37: 7.5
A38: 2026-01-07 | B38: 2026-01-07 | C38: 逸康 | D38: 192001J011MW2 | E38: 80 | F38: 10 | U38: 成品 | V38: 0.75 | W38: 7.5
A39: 2026-01-07 | B39: 2026-01-07 | C39: 逸康 | D39: 260801J0100MB16 | E39: 60 | F39: 3 | R39: 60 | S39: 标识不一致 | U39: 压缩 | V39: 0.8 | W39: 2.4
A40: 2026-01-07 | B40: 2026-01-07 | C40: 逸康 | D40: 260801J0100MB17 | E40: 60 | F40: 3 | R40: 60 | S40: 标识不一致 | U40: 压缩 | V40: 0.8 | W40: 2.4
A41: 2026-01-07 | B41: 2026-01-07 | C41: 华睿 | D41: 240601J0100MB7 | E41: 110 | F41: 10 | L41: 1 | Q41: 1 | S41: 线迹不良1 | U41: 成品 | V41: 0.75 | W41: 7.5
A42: 2026-01-07 | B42: 2026-01-07 | C42: 华睿 | D42: J06D01AB7 | E42: 200 | F42: 20 | U42: 成品 | V42: 0.75 | W42: 15
A43: 2026-01-07 | B43: 2026-01-07 | C43: 华睿 | D43: J06D01AS1 | E43: 120 | F43: 20 | U43: 成品 | V43: 0.75 | W43: 15
A44: 2026-01-07 | B44: 2026-01-07 | C44: 华睿 | D44: J07B08AS1 | E44: 528 | F44: 60 | U44: 成品 | V44: 0.75 | W44: 45
A45: 2026-01-07 | B45: 2026-01-07 | C45: 华睿 | D45: J07B08AB7 | E45: 252 | F45: 24 | U45: 成品 | V45: 0.75 | W45: 18
A46: 2026-01-08 | B46: 2026-01-08 | C46: 顺优 | D46: 252103J3100XLB3-SLJYP | E46: 1300 | F46: 80 | N46: 1 | Q46: 1 | S46: 污渍1 | U46: 内心 | V46: 0.25 | W46: 20
A47: 2026-01-08 | B47: 2026-01-08 | C47: 顺优 | D47: 252103J3100XLB3-SLJZD | E47: 1300 | F47: 80 | J47: 1 | Q47: 1 | S47: 残次1 | U47: 内心 | V47: 0.25 | W47: 20
A48: 2026-01-08 | B48: 2026-01-08 | C48: 逸科斯 | D48: J13V26AW2-NX | E48: 2000 | F48: 120 | U48: 内心 | V48: 0.25 | W48: 30
A49: 2026-01-08 | B49: 2026-01-08 | C49: 奇思 | D49: 255201J1701MY4 | E49: 60 | F49: 10 | U49: 成品 | V49: 0.75 | W49: 7.5
A50: 2026-01-08 | B50: 2026-01-08 | C50: 卓涛 | D50: J13B26AW2-WT | E50: 7 | F50: 7 | U50: 外套 | V50: 0.5 | W50: 3.5
A51: 2026-01-08 | B51: 2026-01-08 | C51: 卓涛 | D51: J13B22AW2-WT | E51: 3 | F51: 3 | U51: 外套 | V51: 0.5 | W51: =F51*V51 -> 1.5
A52: 2026-01-08 | B52: 2026-01-08 | C52: 卓涛 | D52: J13B17AW2-WT | E52: 2 | F52: 2 | U52: 外套 | V52: 0.5 | W52: 1
A53: 2026-01-08 | B53: 2026-01-08 | C53: 卓涛 | D53: J02B05AW2-WT | E53: 1 | F53: 1 | U53: 外套 | V53: 0.5 | W53: 0.5
A54: 2026-01-08 | B54: 2026-01-08 | C54: 奇思 | D54: 255201J1701MY4 | E54: 170 | F54: 17 | L54: 1 | Q54: 1 | S54: 漏缝1 | U54: 成品 | V54: 0.75 | W54: 12.75
A55: 2026-01-08 | B55: 2026-01-09 | C55: 顺优 | D55: 252108J3100XLP1-HMPKB | E55: 500 | F55: 50 | U55: 外套 | V55: 0.5 | W55: 25
A56: 2026-01-08 | B56: 2026-01-09 | C56: 顺优 | D56: 252108J3100XLP1-HMPZD | E56: 500 | F56: 50 | U56: 外套 | V56: 0.5 | W56: 25
A57: 2026-01-08 | B57: 2026-01-09 | C57: 顺优 | D57: 252103J3100XLB3-HMPKB | E57: 880 | F57: 80 | U57: 外套 | V57: 0.5 | W57: 40
A58: 2026-01-08 | B58: 2026-01-09 | C58: 顺优 | D58: 252103J3100XLS9-HMPKB | E58: 400 | F58: 40 | U58: 外套 | V58: 0.5 | W58: =F58*V58 -> 20
A59: 2026-01-08 | B59: 2026-01-09 | C59: 顺优 | D59: 252103J3100XLP1-HMPKB | E59: 300 | F59: 30 | U59: 外套 | V59: 0.5 | W59: 15
A60: 2026-01-08 | B60: 2026-01-09 | C60: 顺优 | D60: 252103J3100XLR4-HMPKB | E60: 100 | F60: 10 | U60: 外套 | V60: 0.5 | W60: 5
A61: 2026-01-08 | B61: 2026-01-09 | C61: 逸康 | D61: J24A15AS1 | E61: 360 | F61: 40 | Q61: 2 | S61: 扣子坏2 | U61: 成品 | V61: 0.75 | W61: 30
A62: 2026-01-08 | B62: 2026-01-09 | C62: 逸康 | D62: 262401J01YHZMS9 | E62: 80 | F62: 10 | S62: 吊牌面料成分多标1，麦兜接收 | U62: 成品 | V62: 0.75 | W62: 7.5
A63: 2026-01-08 | B63: 2026-01-09 | C63: 逸康 | D63: 260801J0100MB16 | E63: 233 | F63: 15 | Q63: 1 | S63: 扣子坏气孔大1 | U63: 压缩 | V63: 0.8 | W63: 12
A64: 2026-01-08 | B64: 2026-01-09 | C64: 逸康 | D64: 260801J0100MB17 | E64: 135 | F64: 10 | U64: 压缩 | V64: 0.8 | W64: 8
A65: 2026-01-09 | B65: 2026-01-09 | C65: 顺优 | D65: 252108J0100LB1-HMPKB | E65: 500 | F65: 50 | U65: 外套 | V65: 0.5 | W65: =F65*V65 -> 25
A66: 2026-01-09 | B66: 2026-01-09 | C66: 顺优 | D66: 252108J0100LB1-HMPZD | E66: 500 | F66: 50 | U66: 外套 | V66: 0.5 | W66: 25
A67: 2026-01-09 | B67: 2026-01-09 | C67: 泓全 | D67: 255201J1702MY4 | E67: 100 | F67: 10 | U67: 成品 | V67: 0.75 | W67: 7.5
A68: 2026-01-09 | B68: 2026-01-09 | C68: 泓全 | D68: J02A07AW2-WT | E68: 200 | F68: 25 | U68: 外套 | V68: 0.5 | W68: 12.5
A69: 2026-01-09 | B69: 2026-01-10 | C69: 高裕 | D69: 220702J1511G-NX | E69: 500 | F69: 50 | U69: 内心 | V69: 0.25 | W69: 12.5
A70: 2026-01-09 | B70: 2026-01-10 | C70: 高裕 | D70: 210703J1500BS1-NX | E70: 500 | F70: 60 | U70: 内心 | V70: 0.25 | W70: 15
A71: 2026-01-09 | B71: 2026-01-10 | C71: 高裕 | D71: J06A22AS1 | E71: 28 | F71: 6 | U71: 压缩 | V71: 0.8 | W71: 4.8
A72: 2026-01-09 | B72: 2026-01-10 | C72: 高裕 | D72: J02A07AW2-NX | E72: 20 | F72: 5 | U72: 内心 | V72: 0.25 | W72: 1.25
A73: 2026-01-09 | B73: 2026-01-10 | C73: 高裕 | D73: 220604J0100MB2 | E73: 1000 | F73: 80 | L73: 2 | O73: 2 | Q73: 4 | S73: 绑带开线2，无吊牌2 | U73: 成品 | V73: 0.75 | W73: 60
A74: 2026-01-09 | B74: 2026-01-10 | C74: 高裕 | D74: J06A17AB7-NX | E74: 200 | F74: 20 | U74: 内心 | V74: 0.25 | W74: 5
A75: 2026-01-11 | B75: 2026-01-12 | C75: 顺优 | D75: 252106J3100LB5 | E75: 500 | F75: 60 | L75: 1 | Q75: 1 | S75: 开线1 | U75: 成品 | V75: 0.75 | W75: 45
A76: 2026-01-11 | B76: 2026-01-12 | C76: 高裕 | D76: J06A17AB7-NX | E76: 300 | F76: 24 | L76: 1 | Q76: 1 | S76: 漏缝1 | U76: 内心 | V76: 0.25 | W76: 6
A77: 2026-11-12 | B77: 2026-01-13 | C77: 逸康 | D77: 232408J0100MG1 | E77: 220 | F77: 20 | U77: 成品 | V77: 0.75 | W77: 15
A78: 2026-11-12 | B78: 2026-01-13 | C78: 逸康 | D78: J24A15AS1 | E78: 460 | F78: 60 | U78: 成品 | V78: 0.75 | W78: 45
A79: 2026-11-12 | B79: 2026-01-13 | C79: 逸康 | D79: 232408J0100MB3 | E79: 120 | F79: 12 | U79: 成品 | V79: 0.75 | W79: 9
A80: 2026-11-12 | B80: 2026-01-13 | C80: 逸康 | D80: 262401J01XHZMS9 | E80: 260 | F80: 40 | L80: 1 | O80: 1 | Q80: 2 | S80: 吊牌面临成分多标1 | U80: 成品 | V80: 0.75 | W80: 30
A81: 2026-11-12 | B81: 2026-01-13 | C81: 逸康 | D81: 242402J0100MB6 | E81: 100 | F81: 20 | Q81: 1 | S81: 扣子坏1 | U81: 成品 | V81: 0.75 | W81: 15
A82: 2026-11-12 | B82: 2026-01-13 | C82: 逸康 | D82: 232408J0100MY3 | E82: 180 | F82: 20 | J82: 3 | R82: 180 | S82: 撕裂3 | U82: 成品 | V82: 0.75 | W82: 15
A83: 2026-01-13 | B83: 2026-01-13 | C83: 华睿 | D83: 240601J0100MB7 | E83: 250 | F83: 30 | U83: 成品 | V83: 0.75 | W83: 22.5
A84: 2026-01-13 | B84: 2026-01-13 | C84: 华睿 | D84: J06D01AB7 | E84: 300 | F84: 30 | P84: 16 | R84: 300 | S84: 洗标错16 | U84: 成品 | V84: 0.75 | W84: 22.5
A85: 2026-01-13 | B85: 2026-01-13 | C85: 华睿 | D85: J07B08AS1 | E85: 168 | F85: 24 | U85: 成品 | V85: 0.75 | W85: 18
A86: 2026-01-13 | B86: 2026-01-13 | C86: 华睿 | D86: J06D01BS1-NX | E86: 140 | F86: 20 | U86: 内心 | V86: 0.25 | W86: 5
A87: 2026-01-13 | B87: 2026-01-13 | C87: 华睿 | D87: J02B05AW2-LX | E87: 300 | F87: 24 | U87: 内心 | V87: 0.25 | W87: 6
A88: 2026-01-14 | B88: 2026-01-14 | C88: 顺优 | D88: 242103J3100LB6-SLJKB | E88: 1700 | F88: 150 | U88: 内心 | V88: 0.25 | W88: 37.5
A89: 2026-01-14 | B89: 2026-01-14 | C89: 顺优 | D89: 242103J3100LB6-SLJZD | E89: 1700 | F89: 150 | U89: 内心 | V89: 0.25 | W89: 37.5
A90: 2026-01-14 | B90: 2026-01-14 | C90: 顺优 | D90: 242103J3100LB6-HMPKB | E90: 490 | F90: 50 | U90: 外套 | V90: 0.5 | W90: 25
A91: 2026-01-14 | B91: 2026-01-14 | C91: 顺优 | D91: 242103J3100LB6-HMPZD | E91: 490 | F91: 50 | U91: 外套 | V91: 0.5 | W91: 25
A92: 2026-01-14 | B92: 2026-01-14 | C92: 顺优 | D92: 242103J3100LB1-HMPKB | E92: 600 | F92: 50 | U92: 外套 | V92: 0.5 | W92: 25
A93: 2026-01-14 | B93: 2026-01-14 | C93: 顺优 | D93: 242103J3100LB1-HMPZD | E93: 600 | F93: 50 | U93: 外套 | V93: 0.5 | W93: 25
A94: 2026-01-14 | B94: 2026-01-14 | C94: 顺优 | D94: 242103J3100LR4-HMPKB | E94: 291 | F94: 30 | U94: 外套 | V94: 0.5 | W94: 15
A95: 2026-01-14 | B95: 2026-01-14 | C95: 顺优 | D95: 242103J3100LR4-HMPZD | E95: 291 | F95: 30 | U95: 外套 | V95: 0.5 | W95: 15
A96: 2026-01-15 | B96: 2026-01-15 | C96: 顺优 | D96: J62D01QB1 | E96: 202 | F96: 21 | U96: 成品 | V96: 0.75 | W96: 15.75
A97: 2026-01-15 | B97: 2026-01-15 | C97: 顺优 | D97: 230610J0108MB6 | E97: 259 | F97: 28 | U97: 成品 | V97: 0.75 | W97: 21
A98: 2026-01-15 | B98: 2026-01-15 | C98: 顺优 | D98: 240614J3100SB1 | E98: 207 | F98: 20 | U98: 成品 | V98: 0.75 | W98: 15
A99: 2026-01-15 | B99: 2026-01-15 | C99: 顺优 | D99: 190602J0108MB7 | E99: 100 | F99: 14 | U99: 成品 | V99: 0.75 | W99: 10.5
A100: 2026-01-15 | B100: 2026-01-16 | C100: 泓全 | D100: J17B12AS9WT | E100: 187 | F100: 20 | U100: 外套 | V100: 0.5 | W100: 10
A101: 2026-01-15 | B101: 2026-01-16 | C101: 泓全 | D101: J17B12AR4WT | E101: 240 | F101: 30 | U101: 外套 | V101: 0.5 | W101: 15
A102: 2026-01-15 | B102: 2026-01-16 | C102: 泓全 | D102: J02A07AW2-WT | E102: 412 | F102: 50 | U102: 外套 | V102: 0.5 | W102: 25
A103: 2026-01-15 | B103: 2026-01-16 | C103: 泓全 | D103: 255201J1702MY4 | E103: 342 | F103: 20 | U103: 成品 | V103: 0.75 | W103: 15
A104: 2026-01-15 | B104: 2026-01-16 | C104: 泓全 | D104: 240606J1501MS9 | E104: 494 | F104: 48 | U104: 成品 | V104: 0.75 | W104: 36
A105: 2026-01-15 | B105: 2026-01-16 | C105: 泓全 | D105: 240606J1501MS9-WT | E105: 219 | F105: 20 | U105: 外套 | V105: 0.5 | W105: 10
A106: 2026-01-15 | B106: 2026-01-16 | C106: 泓全 | D106: 245101JK0900LB7 | E106: 300 | F106: 15 | U106: 成品 | V106: 0.75 | W106: 11.25
A107: 2026-01-15 | B107: 2026-01-16 | C107: 泓全 | D107: 232407J0100MB3-WT | E107: 310 | F107: 35 | L107: 1 | Q107: 1 | S107: 锁边线外露1 | U107: 外套 | V107: 0.5 | W107: 17.5
A108: 2026-01-16 | B108: 2026-01-17 | C108: 逸康 | D108: J24A15AS1 | E108: 340 | F108: 40 | U108: 成品 | V108: 0.75 | W108: 30
A109: 2026-01-16 | B109: 2026-01-17 | C109: 逸康 | D109: J24A15AS1-LX | E109: 204 | F109: 20 | J109: 1 | Q109: 1 | S109: 脱皮1 | U109: 内心 | V109: 0.25 | W109: 5
A110: 2026-01-16 | B110: 2026-01-17 | C110: 宏牛 | D110: 240104JK0200MW2 | E110: 47 | F110: 6 | U110: 压缩 | V110: 0.8 | W110: 4.8
A111: 2026-01-19 | B111: 2026-01-19 | C111: 顺优 | D111: 242103J3100LB6-HMPKB | E111: 664 | F111: 60 | U111: 外套 | V111: 0.5 | W111: 30
A112: 2026-01-19 | B112: 2026-01-19 | C112: 顺优 | D112: 242103J3100LB6-HMPZD | E112: 664 | F112: 60 | U112: 外套 | V112: 0.5 | W112: 30
A113: 2026-01-19 | B113: 2026-01-19 | C113: 顺优 | D113: 242103J3100LB1-HMPKB | E113: 563 | F113: 50 | U113: 外套 | V113: 0.5 | W113: 25
A114: 2026-01-19 | B114: 2026-01-19 | C114: 顺优 | D114: 242103J3100LB1-HMPZD | E114: 563 | F114: 50 | U114: 外套 | V114: 0.5 | W114: 25
A115: 2026-01-19 | B115: 2026-01-19 | C115: 顺优 | D115: 242103J3100LR4-HMPKB | E115: 294 | F115: 30 | U115: 外套 | V115: 0.5 | W115: 15
A116: 2026-01-19 | B116: 2026-01-19 | C116: 顺优 | D116: 242103J3100LR4-HMPZD | E116: 294 | F116: 30 | U116: 外套 | V116: 0.5 | W116: 15
A117: 2026-01-19 | B117: 2026-01-20 | C117: 泓全 | D117: 255201J1703MY4 | E117: 196 | F117: 18 | S117: 店员按钮周边皱褶不平整 | U117: 加热 | V117: 1 | W117: 18
A118: 2026-01-19 | B118: 2026-01-20 | C118: 泓全 | D118: 245101JK0900LB7 | E118: 339 | F118: 18 | S118: 污渍1 | U118: 被子 | V118: 1 | W118: 18
A119: 2026-01-19 | B119: 2026-01-20 | C119: 泓全 | D119: 245101JK0900MB7 | E119: 350 | F119: 18 | U119: 被子 | V119: 1 | W119: 18
A120: 2026-01-19 | B120: 2026-01-20 | C120: 泓全 | D120: 240108J0100LP1-WT | E120: 200 | F120: 25 | S120: 漏沙4 | U120: 外套 | V120: 0.5 | W120: 12.5
A121: 2026-01-20 | B121: 2026-01-20 | C121: 金凯迪 | D121: J06D01AS1 | E121: 180 | F121: 20 | U121: 成品 | V121: 0.75 | W121: 15
A122: 2026-01-20 | B122: 2026-01-20 | C122: 金凯迪 | D122: J06A14BS1 | E122: 510 | F122: 60 | U122: 成品 | V122: 0.75 | W122: 45
A123: 2026-01-20 | B123: 2026-01-20 | C123: 金凯迪 | D123: J24A19AS1 | E123: 300 | F123: 30 | U123: 成品 | V123: 0.75 | W123: 22.5
A124: 2026-01-20 | B124: 2026-01-20 | C124: 金凯迪 | D124: 240108J0100LS9-NX | E124: 68 | F124: 8 | U124: 内心 | V124: 0.25 | W124: 2
A125: 2026-01-20 | B125: 2026-01-20 | C125: 顺优 | D125: 242103J3100LB6-SLJKB | E125: 1202 | F125: 120 | U125: 内心 | V125: 0.25 | W125: 30
A126: 2026-01-20 | B126: 2026-01-20 | C126: 顺优 | D126: 242103J3100LB6-SLJZD | E126: 1202 | F126: 120 | U126: 内心 | V126: 0.25 | W126: =F126*V130 -> 30
A127: 2026-01-21 | B127: 2026-01-22 | C127: 卓涛 | D127: J13B26AW2-WT | E127: 2000 | F127: 150 | N127: 1 | Q127: 1 | S127: 污渍1 | U127: 外套 | V127: 0.5 | W127: 75
A128: 2026-01-22 | B128: 2026-01-22 | C128: 逸康 | D128: J24A15AS1 | E128: 800 | F128: 80 | U128: 成品 | V128: 0.75 | W128: 60
A129: 2026-01-22 | B129: 2026-01-22 | C129: 逸康 | D129: J07B08AS1 | E129: 300 | F129: 30 | U129: 成品 | V129: 0.75 | W129: 22.5
A130: 2026-01-22 | B130: 2026-01-22 | C130: 逸康 | D130: 232407J0100MB3-LX | E130: 144 | F130: 20 | U130: 内心 | V130: 0.25 | W130: =F130*V130 -> 5
A131: 2026-01-22 | B131: 2026-01-22 | C131: 高裕 | D131: J08B06BS1-LX | E131: 336 | F131: 36 | U131: 内心 | V131: 0.25 | W131: =F131*V131 -> 9
A132: 2026-01-22 | B132: 2026-01-22 | C132: 高裕 | D132: J08B07BS1-LX | E132: 228 | F132: 24 | U132: 内心 | V132: 0.25 | W132: =F132*V132 -> 6
A133: 2026-01-22 | B133: 2026-01-23 | C133: 高裕 | D133: J02A04AW2 | E133: 212 | F133: 30 | U133: 成品 | V133: 0.75 | W133: =F133*V133 -> 22.5
A134: 2026-01-22 | B134: 2026-01-23 | C134: 高裕 | D134: J02A07CW2NX | E134: 300 | F134: 30 | U134: 内心 | V134: 0.25 | W134: 7.5
A135: 2026-01-22 | B135: 2026-01-23 | C135: 高裕 | D135: 210801J0100MB7 | E135: 200 | F135: 12 | U135: 压缩 | V135: 0.8 | W135: 9.6
A136: 2026-01-23 | B136: 2026-01-23 | C136: 奇思 | D136: 255201J1700MY4 | E136: 100 | F136: 10 | U136: 加热 | V136: 1 | W136: 10
A137: 2026-01-23 | B137: 2026-01-23 | C137: 华睿 | D137: 240601J0100MB7-LX | E137: 140 | F137: 20 | U137: 内心 | V137: 0.25 | W137: 5
A138: 2026-01-23 | B138: 2026-01-23 | C138: 华睿 | D138: J25D02BS1-NX | E138: 304 | F138: 32 | U138: 内心 | V138: 0.25 | W138: 8
A139: 2026-01-23 | B139: 2026-01-23 | C139: 华睿 | D139: J02B05AW2-LX | E139: 852 | F139: 84 | J139: 1 | N139: 1 | Q139: 2 | S139: 脱皮1，污渍1 | U139: 内心 | V139: 0.25 | W139: 21
A140: 2026-01-23 | B140: 2026-01-23 | C140: 泓全 | D140: 245101JK0900MB7 | E140: 448 | F140: 20 | U140: 被子 | V140: 1 | W140: 20
A141: 2026-01-23 | B141: 2026-01-23 | C141: 泓全 | D141: 232407J0100MB3-WT | E141: 272 | F141: 30 | U141: 外套 | V141: 0.5 | W141: 15
A142: 2026-01-23 | B142: 2026-01-23 | C142: 泓全 | D142: 240108J0100LP1-WT | E142: 162 | F142: 20 | U142: 外套 | V142: 0.5 | W142: 10
A143: 2026-01-23 | B143: 2026-01-23 | C143: 泓全 | D143: 255201J1702MY4 | E143: 13 | F143: 5 | U143: 加热 | V143: 1 | W143: 5
A144: 2026-01-23 | B144: 2026-01-23 | C144: 泓全 | D144: J17B12AS9WT | E144: 140 | F144: 15 | U144: 外套 | V144: 0.5 | W144: 7.5
A145: 2026-01-23 | B145: 2026-01-23 | C145: 泓全 | D145: J06D01AB7 | E145: 42 | F145: 14 | U145: 成品 | V145: 0.75 | W145: 10.5
A146: 2026-01-23 | B146: 2026-01-23 | C146: 泓全 | D146: HQJA-023 | S146: 165米/3 | W146: 0
A147: 2026-01-24 | B147: 2026-01-25 | C147: 顺优 | D147: 252103J3100XLP1-HMPKB | E147: 400 | F147: 40 | U147: 外套 | V147: 0.5 | W147: 20
A148: 2026-01-24 | B148: 2026-01-25 | C148: 顺优 | D148: 252103J3100XLP1-HMPZD | E148: 400 | F148: 40 | U148: 外套 | V148: 0.5 | W148: 20
A149: 2026-01-24 | B149: 2026-01-25 | C149: 顺优 | D149: 252103J3100XLS9-HMPKB | E149: 100 | F149: 10 | U149: 外套 | V149: 0.5 | W149: 5
A150: 2026-01-24 | B150: 2026-01-25 | C150: 顺优 | D150: 252103J3100XLR4-HMPKB | E150: 192 | F150: 20 | U150: 外套 | V150: 0.5 | W150: 10
A151: 2026-01-24 | B151: 2026-01-24 | C151: 顺优 | D151: 242105J3100LB4-01 | E151: 800 | F151: 90 | U151: 成品 | V151: 0.75 | W151: 67.5
A152: 2026-01-24 | B152: 2026-01-25 | C152: 科比尼 | D152: 252101J3100LB5 | E152: 95 | F152: 12 | R152: 95 | S152: 污渍3，无铭牌1，来货空白吊牌 | U152: 成品 | V152: 0.75 | W152: 9
A153: 2026-01-26 | B153: 2026-01-26 | C153: 顾舒家华 | D153: J06A14BS1 | E153: 300 | F153: 30 | U153: 成品 | V153: 0.75 | W153: 22.5
A154: 2026-01-26 | B154: 2026-01-26 | C154: 顾舒家华 | D154: J06D06AB7 | E154: 304 | F154: 32 | U154: 成品 | V154: 0.75 | W154: 24
A155: 2026-01-26 | B155: 2026-01-26 | C155: 顾舒家华 | D155: 210123J0120MS9-ZT | E155: 60 | F155: 10 | U155: 加热 | V155: 1 | W155: 10
A156: 2026-01-26 | B156: 2026-01-26 | C156: 顾舒家华 | D156: 220606J0100MR4 | E156: 100 | F156: 10 | U156: 成品 | V156: 0.75 | W156: 7.5
A157: 2026-01-26 | B157: 2026-01-26 | C157: 顾舒家华 | D157: 241301J0100MB1 | E157: 120 | F157: 12 | U157: 成品 | V157: 0.75 | W157: 9
A158: 2026-01-26 | B158: 2026-01-26 | C158: 顾舒家华 | D158: 240604J0100MB3 | E158: 60 | F158: 12 | R158: 60 | S158: logo脱胶2，修补面积大1 | U158: 成品 | V158: 0.75 | W158: 9
A159: 2026-01-26 | B159: 2026-01-26 | C159: 顾舒家华 | D159: 240604J0100MB1 | E159: 108 | F159: 12 | R159: 108 | U159: 成品 | V159: 0.75 | W159: 9
A160: 2026-01-26 | B160: 2026-01-26 | C160: 顾舒家华 | D160: 230608J0115MB6 | E160: 100 | F160: 10 | U160: 成品 | V160: 0.75 | W160: 7.5
A161: 2026-01-28 | B161: 2026-01-29 | C161: 泓全 | D161: 245101JK0900MB7 | E161: 210 | F161: 15 | U161: 被子 | V161: 1 | W161: 15
A162: 2026-01-28 | B162: 2026-01-29 | C162: 泓全 | D162: 240108J0100LP1-WT | E162: 197 | F162: 30 | R162: 197 | S162: 漏沙扣子脱12 | U162: 外套 | V162: 0.5 | W162: 15
A163: 2026-01-28 | B163: 2026-01-29 | C163: 泓全 | D163: 240606J1500MY1-WT | E163: 292 | F163: 30 | U163: 外套 | V163: 0.5 | W163: 15
A164: 2026-01-28 | B164: 2026-01-29 | C164: 泓全 | D164: 240606J1501MS9 | E164: 400 | F164: 48 | U164: 成品 | V164: 0.75 | W164: 36
A165: 2026-01-29 | B165: 2026-01-29 | C165: 智善 | D165: 210703J1500GB3-WT | E165: 236 | F165: 25 | U165: 外套 | V165: 0.5 | W165: 12.5
A166: 2026-01-29 | B166: 2026-01-29 | C166: 智善 | D166: 220702J1511GS1-WT | E166: 218 | F166: 20 | P166: 1 | Q166: 1 | S166: 无洗标1 | U166: 外套 | V166: 0.5 | W166: 10
A167: 2026-01-29 | B167: 2026-01-29 | C167: 智善 | D167: 240705J1502MB2-WT | E167: 436 | F167: 50 | U167: 外套 | V167: 0.5 | W167: 25
A168: 2026-01-29 | B168: 2026-01-29 | C168: 智善 | D168: J06A14BS1-WT | E168: 198 | F168: 20 | U168: 外套 | V168: 0.5 | W168: 10
A169: 2026-01-29 | B169: 2026-01-29 | C169: 智善 | D169: J08B02S1 | E169: 576 | F169: 50 | K169: 1 | Q169: 1 | S169: 长短毛1 | U169: 外套 | V169: 0.5 | W169: 25
A170: 2026-01-29 | B170: 2026-01-29 | C170: 智善 | D170: J08B06AS1-WT | E170: 762 | F170: 80 | K170: 1 | Q170: 1 | S170: 勾纱1 | U170: 外套 | V170: 0.5 | W170: 40
A171: 2026-01-29 | B171: 2026-01-29 | C171: 智善 | D171: J13B26AW2-WTXX | E171: 307 | F171: 35 | L171: 1 | Q171: 1 | S171: 皱褶1 | U171: 外套 | V171: 0.5 | W171: 17.5
A172: 2026-01-29 | B172: 2026-01-29 | C172: 智善 | D172: J06D01AS1-WT | E172: 297 | F172: 30 | U172: 外套 | V172: 0.5 | W172: 15
A173: 2026-01-29 | B173: 2026-01-29 | C173: 金凯迪 | D173: J06D01AS1 | E173: 420 | F173: 40 | K173: 1 | L173: 1 | Q173: 2 | S173: 破洞1，开线1 | U173: 成品 | V173: 0.75 | W173: 30
A174: 2026-01-29 | B174: 2026-01-29 | C174: 金凯迪 | D174: J06A14BS1 | E174: 90 | F174: 10 | U174: 成品 | V174: 0.75 | W174: 7.5
A175: 2026-01-29 | B175: 2026-01-29 | C175: 金凯迪 | D175: J24A19AS1 | E175: 200 | F175: 20 | L175: 1 | Q175: 1 | S175: 表面有浮毛，破损1 | U175: 成品 | V175: 0.75 | W175: 15
A176: 2026-01-29 | B176: 2026-01-30 | C176: 顺优 | D176: J62D01QB1 | E176: 263 | F176: 28 | U176: 成品 | V176: 0.75 | W176: 21
A177: 2026-01-29 | B177: 2026-01-30 | C177: 顺优 | D177: 190602J0800MB1 | E177: 128 | F177: 14 | U177: 成品 | V177: 0.75 | W177: 10.5
A178: 2026-01-29 | B178: 2026-01-30 | C178: 顺优 | D178: 230610J0108MB6 | E178: 500 | F178: 49 | U178: 成品 | V178: 0.75 | W178: 36.75
A179: 2026-01-29 | B179: 2026-01-30 | C179: 顺优 | D179: 230601J0100MB1 | E179: 601 | F179: 56 | U179: 成品 | V179: 0.75 | W179: 42
A180: 2026-01-29 | B180: 2026-01-30 | C180: 顺优 | D180: 190602J0108MB7 | E180: 99 | F180: 14 | U180: 成品 | V180: 0.75 | W180: 10.5
A181: 2026-01-29 | B181: 2026-01-30 | C181: 高裕 | D181: J08B06BS1-LX | E181: 1004 | F181: 96 | U181: 内心 | V181: 0.25 | W181: 24
A182: 2026-01-29 | B182: 2026-01-30 | C182: 高裕 | D182: J08B07BS1-LX | E182: =483+93 -> 576 | F182: 48 | J182: 48 | R182: 576 | S182: 不光滑、不平整48 | U182: 内心 | V182: 0.25 | W182: 12
A183: 2026-01-29 | B183: 2026-01-31 | C183: 顺优 | D183: 252103J3100XLB3-SLJKB | E183: 1992 | F183: 150 | U183: 内心 | V183: 0.25 | W183: 37.5
A184: 2026-01-29 | B184: 2026-01-31 | C184: 顺优 | D184: 252103J3100XLB3-SLJZD | E184: 1922 | F184: 120 | U184: 内心 | V184: 0.25 | W184: 30
A185: 2026-01-30 | B185: 2026-01-31 | C185: 顺优 | D185: 242104J3100LP1-HMPKB | E185: 410 | F185: 40 | U185: 外套 | V185: 0.5 | W185: 20
A186: 2026-01-30 | B186: 2026-01-31 | C186: 顺优 | D186: 242104J3100LP1-HMPZD | E186: 410 | F186: 40 | U186: 外套 | V186: 0.5 | W186: 20
A187: 2026-01-30 | B187: 2026-01-31 | C187: 顺优 | D187: 242104J3100LR4-HMPKB | E187: 217 | F187: 20 | U187: 外套 | V187: 0.5 | W187: 10
A188: 2026-01-30 | B188: 2026-01-31 | C188: 顺优 | D188: 242104J3100LR4-HMPZD | E188: 217 | F188: 20 | U188: 外套 | V188: 0.5 | W188: 10
A189: 2026-01-30 | B189: 2026-01-31 | C189: 顺优 | D189: 252103J3100XLB1-HMPKB | E189: 300 | F189: 30 | U189: 外套 | V189: 0.5 | W189: 15
A190: 2026-01-30 | B190: 2026-01-31 | C190: 顺优 | D190: 252103J3100XLB1-HMPZD | E190: 300 | F190: 30 | U190: 外套 | V190: 0.5 | W190: 15
A191: 2026-01-30 | B191: 2026-01-31 | C191: 顺优 | D191: 252103J3100XLS9-HMPKB | E191: 400 | F191: 40 | U191: 外套 | V191: 0.5 | W191: 20
A192: 2026-01-30 | B192: 2026-01-31 | C192: 顺优 | D192: 252103J3100XLS9-HMPZD | E192: 400 | F192: 40 | U192: 外套 | V192: 0.5 | W192: 20
A193: 2026-01-30 | B193: 2026-01-31 | C193: 沃沃 | D193: J06A20AB7-WT | E193: 100 | F193: 12 | U193: 外套 | V193: 0.5 | W193: =F193*V193 -> 6
A194: 2026-01-31 | B194: 2026-01-31 | C194: 华睿 | D194: 240601J0100MB7 | E194: 150 | F194: 20 | U194: 成品 | V194: 0.75 | W194: 15
A195: 2026-01-31 | B195: 2026-01-31 | C195: 华睿 | D195: 240104J0100MB3-WT | E195: 58 | F195: 10 | U195: 外套 | V195: 0.5 | W195: 5
A196: 2026-01-31 | B196: 2026-01-31 | C196: 华睿 | D196: J07B02B | E196: 120 | F196: 12 | U196: 内心 | V196: 0.25 | W196: 3
A197: 2026-01-31 | B197: 2026-01-31 | C197: 华睿 | D197: J02B05AW2-LX | E197: 948 | F197: 80 | J197: 5 | Q197: 5 | S197: 撕裂损坏5 | U197: 内心 | V197: 0.25 | W197: 20
A198: 2026-01-31 | B198: 2026-01-31 | C198: 华睿 | D198: 252103J3100XLB3-HMPZD | E198: 200 | F198: 20 | U198: 外套 | V198: 0.5 | W198: 10
W199: 0
W200: 0
... 13 more rows
